Workbook

Sheet Title Page
I13: Photo: Dennis Pittmann
F20: 2009 Direct Seed Crop Rotation Budgets
F21: Lewis County, Idaho
F23: Kathleen Painter, PhD1 and Ken Hart2
F24: 1Farm and Ranch Management Specialist
F25: Department of Agricultural Economics & Rural Sociology
F26: Ag Science, Room 32
F27: Moscow ID 83843-2334
F28: (208) 885-6041
F29: kpainter@uidaho.edu
F31: 2University of Idaho Extension specialist, Lewis County
F32: khart@uidaho.edu

Sheet Instructions
B2: INSTRUCTIONS AND ASSUMPTIONS
B3: General Instructions:
B4: A color coding system is used to indicate the source of the data for each budget and to show which data can be adjusted. Orange cells can be changed without affecting the underlying equations in this cost calculator. Data in yellow cells are from the Summary sheet (click on yellow Summary tab or select it from the TabSelect drop-down menu). In the Summary sheet both crop price and yield are in orange cells. Adjusting any of those numbers will automatically update all calculations throughout the spreadsheet. You can quickly compare price and yield changes by crop and rotation on net returns and land costs. You can also see rotational impacts. For example, if you know that a crop will have a higher yield in a particular sequence, adjust the crop yield in the upper table and see the rotational impact in the second table. You can save the file with this data, then create another scenario and save it as a different file. The graphical tab will illustrate the results of these changes automatically.
B5: Input Prices:
B6: By entering input prices on the Input Prices sheet (click on the green Input Prices tab), all of the cost calculations will be automatically updated. Input cost changes can also be made on individual crop price sheets, over-riding the input cost formulae on that particular crop budget. Fertilizer prices are based on current (Apr 09) quotes, but they are subject to uncertainty. Chemical input prices are based on February, 2009, quotes from chemical and seed dealers. These prices are subject to change, however, and will affect profitability of different crops.
B7: Crop Prices:
B8: Crop prices can be adjusted on the Summary tab and the effects of this change will be reflected throughout all the budgets. (Yields can be adjusted similarly.) Grain prices are based on futures prices for July and August 2009, as of April 2009, FOB Lind, Washington. (Source: Union Elevator, http://www.unionelevator.com). Canola cash prices are from northerncanola.com for Apr 2009.
B9: Machinery Costs:
B10: The machinery complement and associated hourly machinery cost data are in the last two sheets. The hourly machinery cost data are used to create the individualized machinery cost data for each budget, located in a separate tab for each crop. In the crop budget sheets, entries in blue cells are calculated by the machinery cost program and come from the associated Machinery Cost sheet for that crop. Machinery fixed costs include capital recovery costs, property taxes, insurance, and housing. For the overall farm operation, these costs do not vary by crop, given the ownership of a specific machinery complement, and are incurred whether or not crops are grown. Your per acre fixed costs will change if the farm size differs significantly from the size used in these budgets.
B11: Land Costs:
B12: Land costs, included either as real or as opportunity costs, are based on a typical share rental arrangement. We calculate net land rental cost as a cost share as follows:
B13: 1/3 Crop Value – (1/3 Fertilizer Cost + 1/3 Chemical Cost + 1/3 Crop Insurance + Land Taxes)
B14: A typical lease agreement in the areas surveyed is a one-third land owner and two-third tenant crop share, with the land owner paying land taxes, one-third of the fertilizer cost, one-third of the chemical cost, and one-third of the crop insurance. The tenant covers all other production expenses. This crop-share percentage can be adjusted in the crop worksheets. If the percentage is adjusted on the Summary tab, it is changed for all crops. If you want different crop-share percentages for different crops, adjust the percentage on the budget sheet for that crop. This valuable tool reveals how factors such as crop and input price increases as well as cropping choices affect revenue for landlords and operators differently.
B15: While the owner-operator will not actually experience a land rental cost, this cost represents the minimum return owner-operators must realize to justify growing the crop themselves. To determine the profitability of crop production relative to other activities, the owner-operator may want to consider these forgone rental returns along with the usual production expenses.
B16: General Assumptions:
B17: Since farming is inherently variable and constantly changing, we hope that this spreadsheet format will be helpful in adjusting these budgets to reflect your particular operation. Enterprise costs and returns vary from one location to the next and over time for any particular farming operation. Variability stems from differences in the following:
B18: • Capital, labor, and natural resources
B19: • Type and size of machinery complement
B20: • Cultural practices
B21: • Size of farm enterprise
B22: • Crop yields
B23: • Input prices
B24: • Commodity prices
B25: • Management skill
B28: Please examine closely the assumptions we have used and make adjustments to reflect your particular operation. Adjustments in the variable costs can easily be made without affecting the overall accuracy of the budget information. Machinery costs are more difficult to adjust, due to the underlying complexity of machinery cost calculations. A separate machinery cost calculator program is used to develop the costs used in these budgets, which are based on specific machinery widths, tractor horsepower, type of operation, etc. The machinery cost program and data sets specific to this budget are available upon request.
B29: Acknowledgments:
B30: I wish to thank everyone who helped gather all of the information needed to create these worksheets. First and foremost, I thank the farmers who were willing to take the time to share their enterprise information in order to create this worksheet. Without their assistance we would not be able to provide this critical information to others. However, I take responsibility for any errors in these budgets.
B32: Budget spreadsheets are available at the following link:
B33: http://www.webpages.uidaho.edu/~kpainter/

Sheet Summary
B2: Legend: Follow directions below to preserve equations in this spreadsheet.
B3: Yellow Cells: Data are from Summary page (yellow tab).
B4: Orange Cells: Revise this data here to reflect your situation.
B5: Green Cells: Data are from Input Costs page (green tab).
B6: Blue Cells: Data are from the Machinery page (blue tab).
B8: Summary of Returns by Crop and Rotation ($/acre/yr)
B10: In the spreadsheet version, you may adjust yield, price, and crop-share % information in orange cells.
B11: All land cost (crop-share) and other data will adjust automatically throughout. | K11: Crop & Cost
G12: Total | H12: Returns | I12: Total | J12: Returns | K12: Share**
D13: Yield | E13: Price* | F13: Revenue | G13: Cost of | H13: over TC | I13: Variable | J13: over VC | K13: Operator: | L13: 0.67 | M13: Operator
B14: By Crop: | C14: Unit | D14: per acre | E14: per unit | F14: per acre | G14: Operation | H14: ($/acre) | I14: Costs | J14: ($/acre) | K14: Owner: | L14: 0.33 | M14: Owner
B15: Soft White Winter Wheat (SWWW) | C15: bu | D15: 74 | E15: 4.88 | F15: =D15*E15 -> 361.12 | G15: ='SWWW Budget'!$J$73 -> 325.6732 | H15: =D15*E15-G15 -> 35.4468 | I15: ='SWWW Budget'!$J$55 -> 217.453375 | J15: =F15-I15 -> 143.666625 | K15: ='SWWW Budget'!$J$62 -> 68.700825
B16: Hard Red Winter Wheat (HRWW) | C16: bu | D16: 74 | E16: 5.73 | F16: 424.02 | G16: ='HRWW Budget'!$J$73 -> 372.3415 | H16: 51.6785 | I16: ='HRWW Budget'!$J$53 -> 11.10585 | J16: 412.91415 | K16: ='HRWW Budget'!$J$61 -> 5.229
B17: Soft White Spring Wheat (SWSW) | C17: bu | D17: 58 | E17: 4.88 | F17: 283.04 | G17: ='SWSW Budget'!$J$79 -> 286.6629325 | H17: -3.6229325 | I17: ='SWSW Budget'!$J$61 -> 197.3919625 | J17: 85.6480375 | K17: ='SWSW Budget'!$J$68 -> 47.68197
B18: Hard Red Spring Wheat (HRSW) | C18: bu | D18: 58 | E18: 6.79 | F18: 393.82 | G18: ='HRSW Budget'!$J$79 -> 344.3700625 | H18: 49.4499375 | I18: ='HRSW Budget'!$J$61 -> 223.0178125 | J18: 170.8021875 | K18: ='HRSW Budget'!$J$68 -> 79.76325
B19: Bluegrass Establishment (BGE) | C19: lb | F19: 0 | G19: ='BGE Budget'!$J$56 -> 83.77690625 | H19: -83.77690625 | I19: ='BGE Budget'!J45 -> 57.05790625 | J19: -57.05790625
B20: Bluegrass Production (BG) | C20: lb | D20: 675 | E20: 0.65 | F20: =D20*E20 -> 438.75 | G20: ='BG Budget'!$J$73 -> 632.8341838 | H20: =D20*E20-G20 -> -194.0841838 | I20: ='BG Budget'!$J$53 -> 296.56125 | J20: =F20-I20 -> 142.18875 | K20: ='BG Budget'!$J$60 -> 287.4207
B21: Spring Canola (SC) | C21: lb | D21: 1300 | E21: 0.165 | F21: 214.5 | G21: ='Spring Canola Budget'!J70 -> 278.8183275 | H21: -64.3183275 | I21: ='Spring Canola Budget'!J52 -> 205.2210375 | J21: 9.2789625 | K21: ='Spring Canola Budget'!$H$59 -> 32.00829
B22: Chem Fallow (CF) | C22: lb | F22: 0 | G22: ='CF Budget'!J52 -> 79.3338 | H22: -79.3338 | I22: ='CF Budget'!J41 -> 54.8448 | J22: -54.8448
B23: *August 2009 farmgate prices for grains, posted by the Union Elevator, Lind, WA, www.unionelevator.com, accessed Apr 2009.
B24: Canola price from northerncanola.com for Aug 09.
B25: **In a crop- and cost-share arrangement, the landowner and the farm manager split the crop and the specified costs, typically fertilizer, chemicals
B26: and crop insurance.
I27: Aver. | K27: Aver.
G28: Aver. | H28: Aver. | I28: Total | J28: Aver. | K28: Cost
F29: Aver. | G29: Total | H29: Returns | I29: Variable | J29: Returns | K29: Share
F30: Revenue | G30: Cost (TC) | H30: over TC | I30: Costs (VC) | J30: over VC | K30: Cost
B31: By Rotation: | F31: ($/acre) | G31: ($/acre) | H31: ($/acre) | I31: ($/acre) | J31: ($/acre) | K31: ($/acre)
B32: SWWW, SWSW, SC | F32: =AVERAGE(F$15,F$17,F$21) -> 286.22 | G32: =AVERAGE(G$15,G$17,G$21) -> 297.0514867 | H32: -10.83148667 | I32: 206.6887917 | J32: 79.53120833 | K32: 49.463695
B33: SWWW, HRSW, SC | F33: =AVERAGE(F$15,F$18,F$21) -> 323.1466667 | G33: =AVERAGE(G$15,G$18,G$21) -> 316.2871967 | H33: 6.85947 | I33: 215.2307417 | J33: 107.915925 | K33: 60.157455
B34: HRWW, SWSW, SC | F34: =AVERAGE(F$17,F$16,F$21) -> 307.1866667 | G34: =AVERAGE(G$17,G$16,G$21) -> 312.6075867 | H34: -5.42092 | I34: 137.9062833 | J34: 169.2803833 | K34: 28.30642
B35: HRWW, HRSW, SC | F35: =AVERAGE(F$16,F$18,F$21) -> 344.1133333 | G35: =AVERAGE(G$16,G$18,G$21) -> 331.8432967 | H35: 12.27003667 | I35: 146.4482333 | J35: 197.6651 | K35: 39.00018
B36: SWWW, SWSW, BGE, BG x 6 | F36: =AVERAGE(F$15,F$17,F$20,F$20,F$20,F$20,F$20,F$20,) -> 364.0733333 | G36: =AVERAGE(G$15,G$17,G$20,G$20,G$20,G$20,G$20,G$20,) -> 489.9268039 | H36: -125.8534706 | I36: 243.8014264 | J36: 120.2719069 | K36: 204.5452217
B37: SWWW, HRSW, BGE, BG x 6 | F37: =AVERAGE(F$15,F$18,F$20,F$20,F$20,F$20,F$20,F$20) -> 423.43 | G37: =AVERAGE(G$15,G$18,G$20,G$20,G$20,G$20,G$20,G$20) -> 558.3810457 | H37: -134.9510457 | I37: 277.4798359 | J37: 145.9501641 | K37: 234.1235344
B38: HRWW, SWSW, BGE, BG x 6 | F38: =AVERAGE(F$17,F$16,F$20, F$20,F$20,F$20,F$20,F$20) -> 417.445 | G38: =AVERAGE(G$17,G$16,G$20, G$20,G$20,G$20,G$20,G$20) -> 557.0011919 | H38: -139.5561919 | I38: 248.4831641 | J38: 168.9618359 | K38: 222.1793963
B39: HRWW, HRSW, BGE, BG x 6 | F39: =AVERAGE(F$16,F$18,F$20,F$20,F$20,F$20,F$20,F$20) -> 431.2925 | G39: =AVERAGE(G$16,G$18,G$20,G$20,G$20,G$20,G$20,G$20) -> 564.2145832 | H39: -132.9220832 | I39: 251.6863953 | J39: 179.6061047 | K39: 226.1895563
B40: SWWW, SWSW, CF | F40: =AVERAGE(F$15,F$17,F$22) -> 214.72 | G40: =AVERAGE(G$15,G$17,G$22) -> 230.5566442 | H40: -15.83664417 | I40: 156.5633792 | J40: 58.15662083 | K40: 58.1913975
B41: SWWW, HRSW, CF | F41: =AVERAGE(F$15,F$18,F$22) -> 251.6466667 | G41: =AVERAGE(G$15,G$18,G$22) -> 249.7923542 | H41: 1.8543125 | I41: 165.1053292 | J41: 86.5413375 | K41: 74.2320375
B42: HRWW, SWSW, CF | F42: =AVERAGE(F$17,F$16,F$22) -> 235.6866667 | G42: =AVERAGE(G$17,G$16,G$22) -> 246.1127442 | H42: -10.4260775 | I42: 87.78087083 | J42: 147.9057958 | K42: 26.455485
B43: HRWW, HRSW, CF | F43: =AVERAGE(F$16,F$18,F$22) -> 272.6133333 | G43: =AVERAGE(G$16,G$18,G$22) -> 265.3484542 | H43: 7.264879167 | I43: 96.32282083 | J43: 176.2905125 | K43: 42.496125
B45: Budget spreadsheets are available at the following link:
B46: http://www.uidaho.edu/~kpainter

Sheet Graphical
B2: Graphical Summary of Returns by Crop and Rotation ($/acre)
D4: Returns
D5: over TC
C6: By Crop: | D6: ($/acre)
C7: SWWW | D7: =Summary!H15 -> 35.4468 | M7: Crop Prices:
C8: HRWW | D8: =Summary!H16 -> 51.6785 | M8: SWWW | N8: =Summary!E15 -> 4.88
C9: SWSW | D9: =Summary!H17 -> -3.6229325 | M9: HRWW | N9: =Summary!E16 -> 5.73
C10: HRSW | D10: =Summary!H18 -> 49.4499375 | M10: SWSW | N10: =Summary!E17 -> 4.88
C11: BGE | D11: =Summary!H19 -> -83.77690625 | I11: LEGEND: | M11: HRSW | N11: =Summary!E18 -> 6.79
C12: BG | D12: =Summary!H20 -> -194.0841838 | I12: Soft White Winter Wheat (SWWW) | M12: BG | N12: =Summary!E20 -> 0.65
C13: SC | D13: =Summary!H21 -> -64.3183275 | I13: Hard Red Winter Wheat (HRWW) | M13: SC | N13: =Summary!E21 -> 0.165
C14: CF | D14: =Summary!H22 -> -79.3338 | I14: Soft White Spring Wheat (SWSW)
I15: Hard Red Spring Wheat (HRSW)
I16: Bluegrass Establishment (BGE)
I17: Bluegrass Production (BG)
I18: Spring Canola (SC)
I19: Chem Fallow (CF)
D26: Returns
D27: over TC
C28: By Rotation: | D28: ($/acre)
C29: SWWW, SWSW, SC | D29: =Summary!H32 -> -10.83148667
C30: SWWW, HRSW, SC | D30: =Summary!H33 -> 6.85947
C31: HRWW, SWSW, SC | D31: =Summary!H34 -> -5.42092
C32: HRWW, HRSW, SC | D32: =Summary!H35 -> 12.27003667
C33: SWWW, SWSW, BGE, BG x 6 | D33: =Summary!H36 -> -125.8534706
C34: SWWW, HRSW, BGE, BG x 6 | D34: =Summary!H37 -> -134.9510457
C35: HRWW, SWSW, BGE, BG x 6 | D35: =Summary!H38 -> -139.5561919
C36: HRWW, HRSW, BGE, BG x 6 | D36: =Summary!H39 -> -132.9220832
C37: SWWW, SWSW, CF | D37: =Summary!H40 -> -15.83664417
C38: SWWW, HRSW, CF | D38: -0.9237958333
C39: HRWW, SWSW, CF | D39: -13.20418583
C40: HRWW, HRSW, CF | D40: 4.486770833

Sheet Input Prices
B2: Legend: Follow directions below to preserve equations in this spreadsheet.
B3: Yellow Cells: Data are from Summary page (yellow tab).
B4: Orange Cells: Revise this data here to reflect your situation.
B5: Green Cells: Data are from Input Costs page (green tab).
B6: Blue Cells: Data are from the Machinery page (blue tab).
B8: Input Price Assumptions
D9: Projected
D10: 2009
C11: Unit | D11: Price/unit
B12: Fuel:
B13: Diesel | C13: gal | D13: 2
B14: Gas | C14: gal | D14: 2.5
B16: Seed:
B17: Soft White Winter Wheat Seed | C17: lb | D17: 0.15
B18: Hard Red Winter Wheat Seed | C18: lb | D18: 0.2
B19: Soft White Spring Wheat Seed | C19: lb | D19: 0.18
B20: Hard Red Spring Wheat Seed | C20: lb | D20: 0.22
B21: Bluegrass Seed | C21: lb | D21: 0.3775
B22: Canola Seed | C22: lb | D22: 6
B23: Garbanzo Seed | C23: lb | D23: 0.45
B25: Fertilizer:
B26: Nitrogen | C26: lb | D26: 0.55
B27: Phosphorous | C27: lb | D27: 1.17
B28: Sulfur | C28: lb | D28: 0.23
B29: Potassium | C29: lb | D29: 0.46
B31: Adjuvants:
B32: Ammonium Sulfate (liquid) | C32: oz | D32: 0.02
B33: Ammonium Sulfate (20-0-0-24) | C33: lb | D33: 0.12
B34: Crop Oil Concentrate | C34: pt | D34: 1
B35: In-Place | C35: oz | D35: 0.24
B36: M90 | C36: oz | D36: 0.01
B37: Surfactant | C37: oz | D37: 0.08
B38: Syltac Sticker | C38: pt | D38: 6.25
B40: Custom Rental:
B41: 26' Rental Shredder | C41: acre | D41: 10
B42: 36' Ripper Shooter | C42: acre | D42: 2.5
B43: 90' Rental Sprayer | C43: acre | D43: 1.75
B44: Custom Swathing | C44: acre | D44: 15
B45: Custom Aerial | C45: acre | D45: 6.5
B46: Fertilizer Applicator | C46: acre | D46: 1
B48: Pesticides:
B49: Achieve SC | C49: oz | D49: 2
B50: Ally | C50: oz | D50: 24.81
B51: Assure II | C51: oz | D51: 1.2
B52: Axial | C52: oz | D52: 1.81
B53: Banvel 4SC | C53: oz | D53: 0.77
B54: Beacon | C54: oz | D54: 32
B55: Bronate | C55: pt | D55: 5.68
B56: Brox M | C56: oz | D56: 0.3
B57: Capture | C57: acre | D57: 10.17
B58: Dimethoate | C58: pt | D58: 7
B59: Discover | C59: oz | D59: 4.41
B60: FarGO | C60: qt | D60: 12.52
B61: Finesse | C61: oz | D61: 17.4
B62: Glyphosphate | C62: oz | D62: 0.39
B63: Imidan 70 | C63: lb | D63: 9.85
B64: Maverick | C64: oz | D64: 17.45
B65: Poast | C65: pt | D65: 9.38
B66: Osprey | C66: oz | D66: 3.55
B67: Prowl | C67: oz | D67: 0.25
B68: Pursuit | C68: oz | D68: 4.15
B69: Quadris | C69: oz | D69: 2.23
B70: Quilt | C70: oz | D70: 1.22
B71: R-11 | C71: oz | D71: 0.9375
B72: Starane | C72: oz | D72: 0.93
B73: Starane + Salvo | C73: oz | D73: 0.43
B74: Starane + Sword | C74: oz | D74: 0.43
B76: Labor:
B77: Hourly machine labor* | C77: acre | D77: 20
B79: Cash Rent:
B80: Cash Rent | C80: acre | D80: 0
B82: Land Tax:
B83: Land Tax | C83: acre | D83: 3.9
B85: Miscellaneous:
B86: Burning permit | C86: acre | D86: 2
B87: Bluegrass bags, tags, etc. | C87: cwt | D87: 13
B89: Interest:
B90: Operating Loan | C90: percent | D90: 0.075
B91: Machinery Loan/investment | C91: percent | D91: 0.075
B92: *Includes all applicable state and federal taxes.

Sheet SWWW Budget
B2: Legend: Follow directions below to preserve equations in this spreadsheet.
B3: Yellow Cells: Data is from Summary page (yellow tab).
B4: Orange Cells: Revise this data here to reflect your situation.
B5: Green Cells: Data is from Input Costs page (green tab).
B6: Blue Cells: Data is from the Machinery page (blue tab).
B8: Production Costs for Direct Seeded Soft White Winter Wheat, Northern Idaho
D9: Quantity | H9: Price or | J9: Value or
B10: Item | D10: Per Acre | F10: Unit | H10: Cost/Unit | J10: Cost/Acre
B12: Gross Returns
B13: Wheat | D13: =yswww -> 74 | F13: bu | H13: =pswww -> 4.88 | J13: =D13*H13 -> 361.12
B15: Variable Costs
B17: Seed: | J17: =SUM(J18:J18) -> 12
B18: Soft White Winter Wheat Seed | D18: 80 | F18: lb | H18: =SWWWSd -> 0.15 | J18: =D18*H18 -> 12
B20: Fertilizer: | J20: =SUM(J21:J24) -> 77.5
B21: Nitrogen (dry) | D21: 80 | F21: lb | H21: =N -> 0.55 | J21: =D21*H21 -> 44
B22: Phosphorous (dry) | D22: 20 | F22: lb | H22: =P -> 1.17 | J22: =D22*H22 -> 23.4
B23: Sulfur (dry) | D23: 20 | F23: lb | H23: =S -> 0.23 | J23: =D23*H23 -> 4.6
B24: Nitrogen (topdress)1 | D24: 10 | F24: lb | H24: =N -> 0.55 | J24: =D24*H24 -> 5.5
B26: Pesticides: | J26: =SUM(J27:J34) -> 38.6175
B27: Roundup | D27: 20 | F27: oz | H27: =Glyphosphate -> 0.39 | J27: =D27*H27 -> 7.8
B28: Ammonium Sulfate | D28: 50 | F28: oz | H28: =AmmSulfLiq -> 0.02 | J28: 1
B29: M90 | D29: 1.5 | F29: oz | H29: =M -> 0.01 | J29: 0.015
B30: Osprey | D30: 4.75 | F30: oz | H30: =Osprey -> 3.55 | J30: 16.8625
B31: Starane+Salvo | D31: 22 | F31: oz | H31: =StaraneSalvo -> 0.43 | J31: 9.46
B32: Brox M | D32: 1.6 | F32: oz | H32: =BroxM -> 0.3 | J32: 0.48
B33: R-11 | D33: 3.2 | F33: oz | H33: =RPest -> 0.9375 | J33: =D33*H33 -> 3
J34: 0
B36: Machinery: | J36: =SUM(J37:J41) -> 45.112
B37: Fuel | D37: ='SWWW Mach Costs'!M17 -> 5.84625 | F37: gal | H37: =Diesel -> 2 | J37: =D37*H37 -> 11.6925
B38: Lubricants | D38: 1 | F38: acre | H38: ='SWWW Mach Costs'!I17 -> 2.2295 | J38: =D38*H38 -> 2.2295
B39: Machinery Repairs | D39: 1 | F39: acre | H39: ='SWWW Mach Costs'!G17 -> 10.93 | J39: =D39*H39 -> 10.93
B40: Machinery Labor | D40: ='SWWW Mach Costs'!L17 -> 1.013 | F40: acre | H40: =Labor -> 20 | J40: =D40*H40 -> 20.26
J41: =D41*H41 -> 0
B43: Custom & Consultants: | J43: =SUM(J44:J45) -> 2.145
B44: Rental Sprayer | D44: 0 | F44: acre | H44: =Sprayer -> 1.75 | J44: =D44*H44 -> 0
B45: Aerial Spray | D45: 0.33 | F45: acre | H45: =Aerial -> 6.5 | J45: =D45*H45 -> 2.145
B47: Other: | J47: =SUM(J48:J50) -> 25
B48: Crop insurance | D48: 1 | F48: acre | H48: 25 | J48: =D48*H48 -> 25
B49: Storage Facility & Equip. Repairs. | J49: =D49*H49 -> 0
J50: =D50*H50 -> 0
B52: Overhead2 | J52: =($J$17+$J$20+$J$26+$J$43+$J$47)*0.05 -> 7.763125
B53: Operating Interest3 | J53: =+(J17+J20+J26+J43+J47)*operloan*0.8 -> 9.31575
B55: Total Variable Costs | J55: =SUM(J17:J53)-(J17+J20+J26+J36+J43+J47) -> 217.453375
B56: Variable Costs per Unit | J56: =J55/D13 -> 2.938559122
B58: Net Returns Above Variable Costs | J58: =J13-J55 -> 143.666625
B59: Fixed Costs:
B60: Capital recovery costs | J60: ='SWWW Mach Costs'!D17:D17 -> 30.39
B61: Machinery insurance, taxes, housing, licenses | J61: ='SWWW Mach Costs'!E17 -> 5.229
B62: Land Cost* | D62: 1 | F62: acre | H62: =+(D13*H13)*D64-(J20+J26+H48)*D64-J68 -> 68.700825 | J62: =H62 -> 68.700825
B63: *Based on Share Rent Percentage:
B64: Landlord | D64: =+ownershare -> 0.33
B65: Tenant | D65: =opershare -> 0.67
B67: Cash rent | J67: =cashrent -> 0
B68: Land taxes | J68: =landtax -> 3.9
B70: Total Fixed Costs | J70: =SUM(J59:J68) -> 108.219825
B71: Fixed Costs per Unit | J71: =J70/D13 -> 1.462430068
B73: Total Costs per Acre | J73: =J55+J70 -> 325.6732
B74: Total Cost per Unit | J74: =J73/D13 -> 4.400989189
B76: Returns to Risk | J76: =J13-J73 -> 35.4468
B78: Notes:
B79: 1Topdressing is assumed to occur one year in three. Typical application is 30 lb of nitrogen, applied either aerially or with a rogator.
B80: 2Covers legal, accounting, and utility fees. Calculated as 5% of operating expenses.
B81: 3Calculated at 7% interest on operating capital for 6 months.
B84: Breakeven Analysis: | D84: - | F84: Base | H84: +
D85: 0.1 | H85: 0.1
F86: Yield
B87: Price | D87: =F87*(1-D85) -> 66.6 | F87: =D13 -> 74 | H87: =F87*(1+H85) -> 81.4
B89: Operating Cost Breakeven | D89: =$J$55/D87 -> 3.265065691 | F89: =$J$55/F87 -> 2.938559122 | H89: =$J$55/H87 -> 2.671417383
B91: Ownership Cost Breakeven | D91: =$J$70/D87 -> 1.624922297 | F91: =$J$70/F87 -> 1.462430068 | H91: =$J$70/H87 -> 1.32948188
B93: Total Cost Breakeven | D93: =$J$73/D87 -> 4.889987988 | F93: =$J$73/F87 -> 4.400989189 | H93: =$J$73/H87 -> 4.000899263
F96: Price
B97: Yield | D97: =F97*(1-D85) -> 4.392 | F97: =H13 -> 4.88 | H97: =F97*(1+H85) -> 5.368
B99: Operating Cost Breakeven | D99: =$J$55/D97 -> 49.51124203 | F99: =$J$55/F97 -> 44.56011783 | H99: =$J$55/H97 -> 40.50919803
B101: Ownership Cost Breakeven | D101: =$J$70/D97 -> 24.64021516 | F101: =$J$70/F97 -> 22.17619365 | H101: =$J$70/H97 -> 20.16017604
B103: Total Cost Breakeven | D103: =$J$73/D97 -> 74.15145719 | F103: =$J$73/F97 -> 66.73631148 | H103: =$J$73/H97 -> 60.66937407

Sheet SWWW Mach Costs
B2: Soft White Winter Wheat Machinery Costs ($/acre)
D3: Fixed Costs ($/acre): | G3: Variable Costs ($/acre): | K3: Labor | M3: Fuel Use | N3: Total Cost
C4: Timing of Operation | D4: Capital Recovery Costs | E4: Taxes, Housing, Insurance, License | F4: Total Fixed Costs | G4: Repairs | H4: Fuel | I4: Lubricants | J4: Total
K5: ($/acre) | L5: (hr/acre) | M5: (gal/acre) | N5: ($/acre)
B6: 425HP-WT + 60' Heavy Harrow1 | C6: Aug/Sept | D6: ='Machinery Costs'!C18 -> 1.21 | E6: ='Machinery Costs'!D18 -> 0.129 | F6: ='Machinery Costs'!E18 -> 1.339 | G6: ='Machinery Costs'!F18 -> 0.56 | H6: ='Machinery Costs'!G18 -> 0.85 | I6: ='Machinery Costs'!H18 -> 0.15 | J6: ='Machinery Costs'!I18 -> 1.56 | K6: ='Machinery Costs'!J18 -> 0.51 | L6: ='Machinery Costs'!K18 -> 0.0255 | M6: ='Machinery Costs'!L18 -> 0.425 | N6: ='Machinery Costs'!M18 -> 3.409
B7: 200HP-WT + 100' Pull Sprayer2 | C7: Sept | D7: ='Machinery Costs'!C15 -> 1.86 | E7: ='Machinery Costs'!D15 -> 0.21 | F7: ='Machinery Costs'!E15 -> 2.07 | G7: ='Machinery Costs'!F15 -> 0.58 | H7: ='Machinery Costs'!G15 -> 0.34 | I7: ='Machinery Costs'!H15 -> 0.06 | J7: ='Machinery Costs'!I15 -> 0.98 | K7: ='Machinery Costs'!J15 -> 0.43 | L7: ='Machinery Costs'!K15 -> 0.0215 | M7: ='Machinery Costs'!L15 -> 0.17 | N7: ='Machinery Costs'!M15 -> 3.48
B8: 36' NT Drill3 | C8: Sept | D8: ='Machinery Costs'!C19 -> 5.45 | E8: ='Machinery Costs'!D19 -> 0.58 | F8: ='Machinery Costs'!E19 -> 6.03 | G8: ='Machinery Costs'!F19 -> 3.12 | H8: ='Machinery Costs'!G19 -> 2.8135 | I8: ='Machinery Costs'!H19 -> 0.4965 | J8: ='Machinery Costs'!I19 -> 6.43 | K8: ='Machinery Costs'!J19 -> 1.69 | L8: ='Machinery Costs'!K19 -> 0.0845 | M8: ='Machinery Costs'!L19 -> 1.40675 | N8: ='Machinery Costs'!M19 -> 14.15
B9: 200HP-WT + 100' Pull Sprayer4 | C9: April | D9: ='Machinery Costs'!C15 -> 1.86 | E9: ='Machinery Costs'!D15 -> 0.21 | F9: ='Machinery Costs'!E15 -> 2.07 | G9: ='Machinery Costs'!F15 -> 0.58 | H9: ='Machinery Costs'!G15 -> 0.34 | I9: ='Machinery Costs'!H15 -> 0.06 | J9: ='Machinery Costs'!I15 -> 0.98 | K9: ='Machinery Costs'!J15 -> 0.43 | L9: ='Machinery Costs'!K15 -> 0.0215 | M9: ='Machinery Costs'!L15 -> 0.17 | N9: ='Machinery Costs'!M15 -> 3.48
B10: 36' Combine | C10: August | D10: ='Machinery Costs'!C20 -> 10.16 | E10: ='Machinery Costs'!D20 -> 0.87 | F10: ='Machinery Costs'!E20 -> 11.03 | G10: ='Machinery Costs'!F20 -> 1.43 | H10: ='Machinery Costs'!G20 -> 2.81 | I10: ='Machinery Costs'!H20 -> 0.5 | J10: ='Machinery Costs'!I20 -> 4.74 | K10: ='Machinery Costs'!J20 -> 1.69 | L10: ='Machinery Costs'!K20 -> 0.0845 | M10: ='Machinery Costs'!L20 -> 1.405 | N10: ='Machinery Costs'!M20 -> 17.46
B11: 200HP-WT + Bankout Wagon | C11: August | D11: ='Machinery Costs'!C21 -> 1.91 | E11: ='Machinery Costs'!D21 -> 0.2 | F11: ='Machinery Costs'!E21 -> 2.11 | G11: ='Machinery Costs'!F21 -> 0.82 | H11: ='Machinery Costs'!G21 -> 1.326 | I11: ='Machinery Costs'!H21 -> 0.234 | J11: ='Machinery Costs'!I21 -> 2.38 | K11: ='Machinery Costs'!J21 -> 1.69 | L11: ='Machinery Costs'!K21 -> 0.0845 | M11: ='Machinery Costs'!L21 -> 0.663 | N11: ='Machinery Costs'!M21 -> 6.18
B12: Pickup 3/4 ton 4WD, new | C12: Annual | D12: ='Machinery Costs'!C8 -> 2.16 | E12: ='Machinery Costs'!D8 -> 0.38 | F12: ='Machinery Costs'!E8 -> 2.54 | G12: ='Machinery Costs'!F8 -> 0.78 | H12: ='Machinery Costs'!G8 -> 0 | I12: ='Machinery Costs'!H8 -> 0.162 | J12: ='Machinery Costs'!I8 -> 0.942 | K12: ='Machinery Costs'!J8 -> 2.64 | L12: ='Machinery Costs'!K8 -> 0.132 | M12: ='Machinery Costs'!L8 -> 0 | N12: ='Machinery Costs'!M8 -> 6.122
B13: Pickup 3/4 ton 4WD, used | C13: Annual | D13: ='Machinery Costs'!C9 -> 1.56 | E13: ='Machinery Costs'!D9 -> 0.44 | F13: ='Machinery Costs'!E9 -> 2 | G13: ='Machinery Costs'!F9 -> 0.78 | H13: ='Machinery Costs'!G9 -> 1.224 | I13: ='Machinery Costs'!H9 -> 0.216 | J13: ='Machinery Costs'!I9 -> 2.22 | K13: ='Machinery Costs'!J9 -> 4.38 | L13: ='Machinery Costs'!K9 -> 0.219 | M13: ='Machinery Costs'!L9 -> 0.612 | N13: ='Machinery Costs'!M9 -> 8.6
B14: Tandem Axle Truck | C14: Annual | D14: ='Machinery Costs'!C10 -> 1.65 | E14: ='Machinery Costs'!D10 -> 0.99 | F14: ='Machinery Costs'!E10 -> 2.64 | G14: ='Machinery Costs'!F10 -> 0.99 | H14: ='Machinery Costs'!G10 -> 0.969 | I14: ='Machinery Costs'!H10 -> 0.171 | J14: ='Machinery Costs'!I10 -> 2.13 | K14: ='Machinery Costs'!J10 -> 3.3 | L14: ='Machinery Costs'!K10 -> 0.165 | M14: ='Machinery Costs'!L10 -> 0.4845 | N14: ='Machinery Costs'!M10 -> 8.07
B15: Tandem Axle Truck | C15: Annual | D15: ='Machinery Costs'!C11 -> 1.65 | E15: ='Machinery Costs'!D11 -> 0.99 | F15: ='Machinery Costs'!E11 -> 2.64 | G15: ='Machinery Costs'!F11 -> 0.99 | H15: ='Machinery Costs'!G11 -> 0.969 | I15: ='Machinery Costs'!H11 -> 0.171 | J15: ='Machinery Costs'!I11 -> 2.13 | K15: ='Machinery Costs'!J11 -> 3.3 | L15: ='Machinery Costs'!K11 -> 0.165 | M15: ='Machinery Costs'!L11 -> 0.4845 | N15: ='Machinery Costs'!M11 -> 8.07
B16: Trap Wagon | C16: Annual | D16: ='Machinery Costs'!C12 -> 0.92 | E16: ='Machinery Costs'!D12 -> 0.23 | F16: ='Machinery Costs'!E12 -> 1.15 | G16: ='Machinery Costs'!F12 -> 0.3 | H16: ='Machinery Costs'!G12 -> 0.051 | I16: ='Machinery Costs'!H12 -> 0.009 | J16: ='Machinery Costs'!I12 -> 0.36 | K16: ='Machinery Costs'!J12 -> 0.2 | L16: ='Machinery Costs'!K12 -> 0.01 | M16: ='Machinery Costs'!L12 -> 0.0255 | N16: ='Machinery Costs'!M12 -> 1.71
B17: Total: | D17: =SUM(D6:D16) -> 30.39 | E17: =SUM(E6:E16) -> 5.229 | F17: 35.619 | G17: 10.93 | H17: 11.6925 | I17: 2.2295 | J17: 24.852 | K17: 20.26 | L17: 1.013 | M17: 5.84625 | N17: 80.731
B18: Note: Farm size is assumed to be 2000 acres for the purposes of machinery cost calculations.
B19: Comments:
B20: 1Harrow once unless following winter wheat, in which case you'll need an additional harrow operation.
B21: 2Typically 16-24 oz Roundup, 1.5 oz M90, 50 oz ammonium sulfate.
B22: 3Typically 80 lb seed, 80 lb N, 20 lb P, 20 lb S.
B23: 4Typically a tankmix with a wildoat spray such as Osprey (4.75 oz) and broadleaf sprays such as Starane+Salvo (22 oz) and Brox M (16 oz) plus a surfactant such as R-11 (3.2 oz).

Sheet HRWW Budget
B2: Legend: Follow directions below to preserve equations in this spreadsheet.
B3: Yellow Cells: Data is from Summary page (yellow tab).
B4: Orange Cells: Revise this data here to reflect your situation.
B5: Green Cells: Data is from Input Costs page (green tab).
B6: Blue Cells: Data is from the Machinery page (blue tab).
B8: Production Costs for Direct Seeded Hard Red Winter Wheat, Northern Idaho
D9: Quantity | H9: Price or | J9: Value or
B10: Item | D10: Per Acre | F10: Unit | H10: Cost/Unit | J10: Cost/Acre
B12: Gross Returns
B13: Wheat | D13: =yhrww -> 74 | F13: bu | H13: =phrww -> 5.73 | J13: =D13*H13 -> 424.02
B15: Variable Costs
B17: Seed: | J17: =SUM(J18:J18) -> 20
B18: Hard Red Winter Wheat Seed | D18: 100 | F18: lb | H18: =HRWWSd -> 0.2 | J18: =D18*H18 -> 20
B20: Fertilizer: | J20: =SUM(J21:J24) -> 94
B21: Nitrogen (dry) | D21: 110 | F21: lb | H21: =N -> 0.55 | J21: =D21*H21 -> 60.5
B22: Phosphorous (dry) | D22: 20 | F22: lb | H22: =P -> 1.17 | J22: =D22*H22 -> 23.4
B23: Sulfur (dry) | D23: 20 | F23: lb | H23: =S -> 0.23 | J23: =D23*H23 -> 4.6
B24: Nitrogen (topdress)1 | D24: 10 | F24: lb | H24: =N -> 0.55 | J24: =D24*H24 -> 5.5
B26: Pesticides: | J26: =SUM(J27:J34) -> 43.9525
B27: Roundup | D27: 20 | F27: oz | H27: =Glyphosphate -> 0.39 | J27: =D27*H27 -> 7.8
B28: Ammonium Sulfate | D28: 100 | F28: oz | H28: =AmmSulfLiq -> 0.02 | J28: 2
B29: M90 | D29: 3 | F29: oz | H29: =M -> 0.01 | J29: 0.03
B30: Osprey | D30: 4.75 | F30: oz | H30: =Osprey -> 3.55 | J30: 16.8625
B31: Starane+Salvo | D31: 22 | F31: oz | H31: =StaraneSalvo -> 0.43 | J31: 9.46
B32: Brox M | D32: 16 | F32: oz | H32: =BroxM -> 0.3 | J32: 4.8
B33: R-11 | D33: 3.2 | F33: oz | H33: =RPest -> 0.9375 | J33: =D33*H33 -> 3
J34: 0
B36: Machinery: | J36: =SUM(J37:J41) -> 45.112
B37: Fuel | D37: ='HRWW Mach Costs'!M17 -> 5.84625 | F37: gal | H37: =Diesel -> 2 | J37: =D37*H37 -> 11.6925
B38: Lubricants | D38: 1 | F38: acre | H38: =+'HRWW Mach Costs'!I17 -> 2.2295 | J38: =D38*H38 -> 2.2295
B39: Machinery Repairs | D39: 1 | F39: acre | H39: ='HRWW Mach Costs'!G17 -> 10.93 | J39: =D39*H39 -> 10.93
B40: Machinery Labor | D40: ='HRWW Mach Costs'!L17 -> 1.013 | F40: acre | H40: =Labor -> 20 | J40: =D40*H40 -> 20.26
J41: =D41*H41 -> 0
B43: Custom & Consultants: | J43: =SUM(J44:J45) -> 2.145
B44: Rental Sprayer | D44: 0 | F44: acre | H44: =Sprayer -> 1.75 | J44: =D44*H44 -> 0
B45: Aerial Spray | D45: 0.33 | F45: acre | H45: =Aerial -> 6.5 | J45: =D45*H45 -> 2.145
B47: Other: | J47: =SUM(J48:J50) -> 25
B48: Crop insurance | D48: 1 | F48: acre | H48: 25 | J48: =D48*H48 -> 25
B49: Storage Facility & Equip. Repairs. | J49: =D49*H49 -> 0
J50: =D50*H50 -> 0
B52: Overhead2 | J52: =($J$17+$J$20+$J$26+$J$43+$J$47)*0.05 -> 9.254875
B53: Operating Interest3 | J53: =+(J17+J20+J26+J43+J47)*operloan*0.8 -> 11.10585
B55: Total Variable Costs | J55: =SUM(J17:J53)-(J17+J20+J26+J36+J43+J47) -> 250.570225
B56: Variable Costs per Unit | J56: =J55/D13 -> 3.386084122
B58: Net Returns Above Variable Costs | J58: =J13-J55 -> 173.449775
B59: Fixed Costs:
B60: Capital recovery costs | J60: ='HRWW Mach Costs'!D17 -> 30.39
B61: Machinery insurance, taxes, housing, licenses | J61: ='HRWW Mach Costs'!E17 -> 5.229
B62: Land Cost* | D62: 1 | F62: acre | H62: =+(D13*H13)*D64-(J20+J26+H48)*D64-J68 -> 82.252275 | J62: =H62 -> 82.252275
B63: *Based on Share Rent Percentage:
B64: Landlord | D64: =+ownershare -> 0.33
B65: Tenant | D65: =opershare -> 0.67
B67: Cash rent | J67: =cashrent -> 0
B68: Land taxes | J68: =landtax -> 3.9
B70: Total Fixed Costs | J70: =SUM(J59:J68) -> 121.771275
B71: Fixed Costs per Unit | J71: =J70/D13 -> 1.64555777
B73: Total Costs per Acre | J73: =J55+J70 -> 372.3415
B74: Total Cost per Unit | J74: =J73/D13 -> 5.031641892
B76: Returns to Risk | J76: =J13-J73 -> 51.6785
B78: Notes:
B79: 1Topdressing is assumed to occur one year in three. Typical application is 30 lb of nitrogen, applied either aerially or with a rogator.
B80: 2Covers legal, accounting, and utility fees. Calculated as 5% of operating expenses.
B81: 3Calculated at 7% interest on operating capital for 6 months.
B84: Breakeven Analysis: | D84: - | F84: Base | H84: +
D85: 0.1 | H85: 0.1
F86: Yield
B87: Price | D87: =F87*(1-D85) -> 66.6 | F87: =D13 -> 74 | H87: =F87*(1+H85) -> 81.4
B89: Operating Cost Breakeven | D89: =$J$55/D87 -> 3.762315691 | F89: =$J$55/F87 -> 3.386084122 | H89: =$J$55/H87 -> 3.078258292
B91: Ownership Cost Breakeven | D91: =$J$70/D87 -> 1.828397523 | F91: =$J$70/F87 -> 1.64555777 | H91: =$J$70/H87 -> 1.495961609
B93: Total Cost Breakeven | D93: =$J$73/D87 -> 5.590713213 | F93: =$J$73/F87 -> 5.031641892 | H93: =$J$73/H87 -> 4.574219902
F96: Price
B97: Yield | D97: =F97*(1-D85) -> 5.157 | F97: =H13 -> 5.73 | H97: =F97*(1+H85) -> 6.303
B99: Operating Cost Breakeven | D99: =$J$55/D97 -> 48.58837018 | F99: =$J$55/F97 -> 43.72953316 | H99: =$J$55/H97 -> 39.75412105
B101: Ownership Cost Breakeven | D101: =$J$70/D97 -> 23.61281268 | F101: =$J$70/F97 -> 21.25153141 | H101: =$J$70/H97 -> 19.31957401
B103: Total Cost Breakeven | D103: =$J$73/D97 -> 72.20118286 | F103: =$J$73/F97 -> 64.98106457 | H103: =$J$73/H97 -> 59.07369507

Sheet HRWW Mach Costs
B2: Hard Red Winter Wheat Machinery Costs ($/acre)
D3: Fixed Costs ($/acre): | G3: Variable Costs ($/acre): | K3: Labor | M3: Fuel Use | N3: Total Cost
C4: Timing of Operation | D4: Capital Recovery Costs | E4: Taxes, Housing, Insurance, License | F4: Total Fixed Costs | G4: Repairs | H4: Fuel | I4: Lubricants | J4: Total
K5: ($/acre) | L5: (hr/acre) | M5: (gal/acre) | N5: ($/acre)
B6: 425HP-WT + 60' Heavy Harrow1 | C6: Aug/Sept | D6: ='Machinery Costs'!C18 -> 1.21 | E6: ='Machinery Costs'!D18 -> 0.129 | F6: ='Machinery Costs'!E18 -> 1.339 | G6: ='Machinery Costs'!F18 -> 0.56 | H6: ='Machinery Costs'!G18 -> 0.85 | I6: ='Machinery Costs'!H18 -> 0.15 | J6: ='Machinery Costs'!I18 -> 1.56 | K6: ='Machinery Costs'!J18 -> 0.51 | L6: ='Machinery Costs'!K18 -> 0.0255 | M6: ='Machinery Costs'!L18 -> 0.425 | N6: ='Machinery Costs'!M18 -> 3.409
B7: 200HP-WT + 100' Pull Sprayer2 | C7: Sept | D7: ='Machinery Costs'!C15 -> 1.86 | E7: ='Machinery Costs'!D15 -> 0.21 | F7: ='Machinery Costs'!E15 -> 2.07 | G7: ='Machinery Costs'!F15 -> 0.58 | H7: ='Machinery Costs'!G15 -> 0.34 | I7: ='Machinery Costs'!H15 -> 0.06 | J7: ='Machinery Costs'!I15 -> 0.98 | K7: ='Machinery Costs'!J15 -> 0.43 | L7: ='Machinery Costs'!K15 -> 0.0215 | M7: ='Machinery Costs'!L15 -> 0.17 | N7: ='Machinery Costs'!M15 -> 3.48
B8: 36' NT Drill3 | C8: Sept | D8: ='Machinery Costs'!C19 -> 5.45 | E8: ='Machinery Costs'!D19 -> 0.58 | F8: ='Machinery Costs'!E19 -> 6.03 | G8: ='Machinery Costs'!F19 -> 3.12 | H8: ='Machinery Costs'!G19 -> 2.8135 | I8: ='Machinery Costs'!H19 -> 0.4965 | J8: ='Machinery Costs'!I19 -> 6.43 | K8: ='Machinery Costs'!J19 -> 1.69 | L8: ='Machinery Costs'!K19 -> 0.0845 | M8: ='Machinery Costs'!L19 -> 1.40675 | N8: ='Machinery Costs'!M19 -> 14.15
B9: 200HP-WT + 100' Pull Sprayer4 | C9: April | D9: ='Machinery Costs'!C15 -> 1.86 | E9: ='Machinery Costs'!D15 -> 0.21 | F9: ='Machinery Costs'!E15 -> 2.07 | G9: ='Machinery Costs'!F15 -> 0.58 | H9: ='Machinery Costs'!G15 -> 0.34 | I9: ='Machinery Costs'!H15 -> 0.06 | J9: ='Machinery Costs'!I15 -> 0.98 | K9: ='Machinery Costs'!J15 -> 0.43 | L9: ='Machinery Costs'!K15 -> 0.0215 | M9: ='Machinery Costs'!L15 -> 0.17 | N9: ='Machinery Costs'!M15 -> 3.48
B10: 36' Combine | C10: August | D10: ='Machinery Costs'!C20 -> 10.16 | E10: ='Machinery Costs'!D20 -> 0.87 | F10: ='Machinery Costs'!E20 -> 11.03 | G10: ='Machinery Costs'!F20 -> 1.43 | H10: ='Machinery Costs'!G20 -> 2.81 | I10: ='Machinery Costs'!H20 -> 0.5 | J10: ='Machinery Costs'!I20 -> 4.74 | K10: ='Machinery Costs'!J20 -> 1.69 | L10: ='Machinery Costs'!K20 -> 0.0845 | M10: ='Machinery Costs'!L20 -> 1.405 | N10: ='Machinery Costs'!M20 -> 17.46
B11: 200HP-WT + Bankout Wagon | C11: August | D11: ='Machinery Costs'!C21 -> 1.91 | E11: ='Machinery Costs'!D21 -> 0.2 | F11: ='Machinery Costs'!E21 -> 2.11 | G11: ='Machinery Costs'!F21 -> 0.82 | H11: ='Machinery Costs'!G21 -> 1.326 | I11: ='Machinery Costs'!H21 -> 0.234 | J11: ='Machinery Costs'!I21 -> 2.38 | K11: ='Machinery Costs'!J21 -> 1.69 | L11: ='Machinery Costs'!K21 -> 0.0845 | M11: ='Machinery Costs'!L21 -> 0.663 | N11: ='Machinery Costs'!M21 -> 6.18
B12: Pickup 3/4 ton 4WD, new | C12: Annual | D12: ='Machinery Costs'!C8 -> 2.16 | E12: ='Machinery Costs'!D8 -> 0.38 | F12: ='Machinery Costs'!E8 -> 2.54 | G12: ='Machinery Costs'!F8 -> 0.78 | H12: ='Machinery Costs'!G8 -> 0 | I12: ='Machinery Costs'!H8 -> 0.162 | J12: ='Machinery Costs'!I8 -> 0.942 | K12: ='Machinery Costs'!J8 -> 2.64 | L12: ='Machinery Costs'!K8 -> 0.132 | M12: ='Machinery Costs'!L8 -> 0 | N12: ='Machinery Costs'!M8 -> 6.122
B13: Pickup 3/4 ton 4WD, used | C13: Annual | D13: ='Machinery Costs'!C9 -> 1.56 | E13: ='Machinery Costs'!D9 -> 0.44 | F13: ='Machinery Costs'!E9 -> 2 | G13: ='Machinery Costs'!F9 -> 0.78 | H13: ='Machinery Costs'!G9 -> 1.224 | I13: ='Machinery Costs'!H9 -> 0.216 | J13: ='Machinery Costs'!I9 -> 2.22 | K13: ='Machinery Costs'!J9 -> 4.38 | L13: ='Machinery Costs'!K9 -> 0.219 | M13: ='Machinery Costs'!L9 -> 0.612 | N13: ='Machinery Costs'!M9 -> 8.6
B14: Tandem Axle Truck | C14: Annual | D14: ='Machinery Costs'!C10 -> 1.65 | E14: ='Machinery Costs'!D10 -> 0.99 | F14: ='Machinery Costs'!E10 -> 2.64 | G14: ='Machinery Costs'!F10 -> 0.99 | H14: ='Machinery Costs'!G10 -> 0.969 | I14: ='Machinery Costs'!H10 -> 0.171 | J14: ='Machinery Costs'!I10 -> 2.13 | K14: ='Machinery Costs'!J10 -> 3.3 | L14: ='Machinery Costs'!K10 -> 0.165 | M14: ='Machinery Costs'!L10 -> 0.4845 | N14: ='Machinery Costs'!M10 -> 8.07
B15: Tandem Axle Truck | C15: Annual | D15: ='Machinery Costs'!C11 -> 1.65 | E15: ='Machinery Costs'!D11 -> 0.99 | F15: ='Machinery Costs'!E11 -> 2.64 | G15: ='Machinery Costs'!F11 -> 0.99 | H15: ='Machinery Costs'!G11 -> 0.969 | I15: ='Machinery Costs'!H11 -> 0.171 | J15: ='Machinery Costs'!I11 -> 2.13 | K15: ='Machinery Costs'!J11 -> 3.3 | L15: ='Machinery Costs'!K11 -> 0.165 | M15: ='Machinery Costs'!L11 -> 0.4845 | N15: ='Machinery Costs'!M11 -> 8.07
B16: Trap Wagon | C16: Annual | D16: ='Machinery Costs'!C12 -> 0.92 | E16: ='Machinery Costs'!D12 -> 0.23 | F16: ='Machinery Costs'!E12 -> 1.15 | G16: ='Machinery Costs'!F12 -> 0.3 | H16: ='Machinery Costs'!G12 -> 0.051 | I16: ='Machinery Costs'!H12 -> 0.009 | J16: ='Machinery Costs'!I12 -> 0.36 | K16: ='Machinery Costs'!J12 -> 0.2 | L16: ='Machinery Costs'!K12 -> 0.01 | M16: ='Machinery Costs'!L12 -> 0.0255 | N16: ='Machinery Costs'!M12 -> 1.71
B17: Total: | D17: =SUM(D6:D16) -> 30.39 | E17: =SUM(E6:E16) -> 5.229 | F17: 35.619 | G17: 10.93 | H17: 11.6925 | I17: 2.2295 | J17: 24.852 | K17: 20.26 | L17: 1.013 | M17: 5.84625 | N17: 80.731
B18: Note: Farm size is assumed to be 2000 acres for the purposes of machinery cost calculations.
B19: Comments:
B20: 1Harrow once unless following winter wheat, in which case you'll need an additional harrow operation.
B21: 2Typically 16-24 oz Roundup, 1.5 oz M90, 50 oz ammonium sulfate.
B22: 3Typically 80 lb seed, 80 lb N, 20 lb P, 20 lb S.
B23: 4Typically a tankmix with a wildoat spray such as Osprey (4.75 oz) and broadleaf sprays such as Starane+Salvo (22 oz) and Brox M (16 oz) plus a surfactant such as R-11 (3.2 oz).

Sheet SWSW Budget
B2: Legend: Follow directions below to preserve equations in this spreadsheet.
B3: Yellow Cells: Data are from Summary page (yellow tab).
B4: Orange Cells: Revise this data here to reflect your situation.
B5: Green Cells: Data are from Input Costs page (green tab).
B6: Blue Cells: Data are from the Machinery page (blue tab).
B8: Production Costs for Direct Seeded Soft White Spring Wheat, Northern Idaho
D9: Quantity | H9: Price or | J9: Value or
B10: Item | D10: Per Acre | F10: Unit | H10: Cost/Unit | J10: Cost/Acre
B12: Gross Returns
B13: Soft White Spring Wheat | D13: =Summary!D17 -> 58 | F13: bu | H13: =Summary!E17 -> 4.88 | J13: =D13*H13 -> 283.04
B14: Variable Costs
B16: Seed: | J16: =SUM(J17:J17) -> 12
B17: Soft White Wheat Seed | D17: 80 | F17: lb | H17: =Wheat -> 0.15 | J17: =D17*H17 -> 12
B19: Fertilizer: | J19: =SUM(J20:J24) -> 72
B20: Nitrogen (dry) | D20: 80 | F20: lb | H20: =N -> 0.55 | J20: =D20*H20 -> 44
B21: Phosphorous (dry) | D21: 20 | F21: lb | H21: =P -> 1.17 | J21: =D21*H21 -> 23.4
B22: Potassium (dry) | D22: 0 | F22: lb | H22: =K -> 0.46 | J22: =D22*H22 -> 0
B23: Sulfur (dry) | D23: 20 | F23: lb | H23: =S -> 0.23 | J23: =D23*H23 -> 4.6
J24: =D24*H24 -> 0
B26: Pesticides: | J26: =SUM(J27:J34) -> 34.731
B27: Roundup | D27: 36 | F27: oz | H27: =Glyphosphate -> 0.39 | J27: =D27*H27 -> 14.04
B28: M90 | D28: 3 | F28: oz | H28: =M -> 0.01 | J28: 0.03
B29: Ammonium Sulfate | D29: 50 | F29: oz | H29: =AmmSulfLiq -> 0.02 | J29: 1
B30: Axial | D30: 4.1 | F30: oz | H30: =Axial -> 1.81 | J30: 7.421
B31: Brox M | D31: 12 | F31: oz | H31: =BroxM -> 0.3 | J31: 3.6
B32: Starane | D32: 8 | F32: oz | H32: =Starane -> 0.93 | J32: 7.44
B33: InPlace | D33: 5 | F33: oz | H33: =InPlace -> 0.24 | J33: 1.2
J34: 0
B36: Fungicides: | J36: =SUM(J37:J39) -> 0
B37: Quilt | D37: 0 | F37: oz | H37: =Quilt -> 1.22 | J37: =D37*H37 -> 0
B38: Syltac Sticker | D38: 0 | F38: pt | H38: =Syltac -> 6.25 | J38: =D38*H38 -> 0
J39: =D39*H39 -> 0
B41: Machinery: | J41: =SUM(J42:J46) -> 46.522
B42: Fuel | D42: ='SWSW Mach Costs'!M18 -> 6.01625 | F42: gal | H42: =Diesel -> 2 | J42: =D42*H42 -> 12.0325
B43: Lubricants | D43: 1 | F43: acre | H43: ='SWSW Mach Costs'!I18 -> 2.2895 | J43: =D43*H43 -> 2.2895
B44: Machinery Repairs | D44: 1 | F44: acre | H44: ='SWSW Mach Costs'!G18 -> 11.51 | J44: =D44*H44 -> 11.51
B45: Machinery Labor | D45: ='SWSW Mach Costs'!L18 -> 1.0345 | F45: acre | H45: =Labor -> 20 | J45: =D45*H45 -> 20.69
B46: Other Labor | J46: =D46*H46 -> 0
B48: Custom & Consultants: | J48: =SUM(J49:J51) -> 0
B49: Rental Sprayer | D49: 0 | F49: acre | H49: =Sprayer -> 1.75 | J49: =D49*H49 -> 0
B50: Custom Aerial | D50: 0 | F50: acre | H50: =Aerial -> 6.5 | J50: =D50*H50 -> 0
J51: =D51*H51 -> 0
B53: Other: | J53: =SUM(J54:J56) -> 20
B54: Crop insurance | D54: 1 | F54: acre | H54: 20 | J54: =D54*H54 -> 20
B55: Storage Facility & Equip. Repairs | J55: =D55*H55 -> 0
J56: =D56*H56 -> 0
B58: Overhead1 | J58: =(J16+J19+J26+J36+J48+J53)*0.05 -> 6.93655
B59: Operating Interest2 | J59: =(J16+J19+J26+J36+J48+J53)*operloan*0.5 -> 5.2024125
B61: Total Variable Costs | J61: =SUM(J16:J59)-(J16+J19+J26+J36+J41+J48+J53) -> 197.3919625
B62: Variable Costs per Unit | J62: =J61/D13 -> 3.403309698
B64: Net Returns Above Variable Costs | J64: =J13-J61 -> 85.6480375
B65: Fixed Costs:
B66: Capital recovery costs | J66: ='SWSW Mach Costs'!D18 -> 32.25
B67: Machinery insurance, taxes, housing, licenses | J67: ='SWSW Mach Costs'!E18 -> 5.439
B68: Land Cost* | D68: 1 | F68: acre | H68: =+(D13*H13)*D70-(J19+J26+J36+H54)*D70-J74 -> 47.68197 | J68: =D68*H68 -> 47.68197
B69: *Based on Share Rent Percentage:
B70: Landlord | D70: =+ownershare -> 0.33
B71: Tenant | D71: =opershare -> 0.67
B73: Cash rent | J73: =cashrent -> 0
B74: Land taxes | J74: =landtax -> 3.9
B76: Total Fixed Costs | J76: =SUM(J65:J74) -> 89.27097
B77: Fixed Costs per Unit | J77: =J76/D13 -> 1.539154655
B79: Total Costs per Acre | J79: =J61+J76 -> 286.6629325
B80: Total Cost per Unit | J80: =J79/D13 -> 4.942464353
B82: Returns to Risk | J82: =J13-J79 -> -3.6229325
B84: Notes:
B85: 1Covers legal, accounting, and utility fees. Calculated as 5% of operating expenses.
B86: 2Calculated at 7% interest on operating capital for 6 months.
B90: Breakeven Analysis: | D90: - | F90: Base | H90: +
D91: 0.1 | H91: 0.1
F92: Yield
B93: Price | D93: =F93*(1-D91) -> 52.2 | F93: =D13 -> 58 | H93: =F93*(1+H91) -> 63.8
B95: Operating Cost Breakeven | D95: =$J$61/D93 -> 3.78145522 | F95: =$J$61/F93 -> 3.403309698 | H95: =$J$61/H93 -> 3.093917908
B97: Ownership Cost Breakeven | D97: =$J$76/D93 -> 1.710171839 | F97: =$J$76/F93 -> 1.539154655 | H97: =$J$76/H93 -> 1.399231505
B99: Total Cost Breakeven | D99: =$J$79/D93 -> 5.491627059 | F99: =$J$79/F93 -> 4.942464353 | H99: =$J$79/H93 -> 4.493149412
F102: Price
B103: Yield | D103: =F103*(1-D91) -> 4.392 | F103: =H13 -> 4.88 | H103: =F103*(1+H91) -> 5.368
B105: Operating Cost Breakeven | D105: =$J$61/D103 -> 44.94352516 | F105: =$J$61/F103 -> 40.44917264 | H105: =$J$61/H103 -> 36.77197513
B107: Ownership Cost Breakeven | D107: =$J$76/D103 -> 20.32581284 | F107: =$J$76/F103 -> 18.29323156 | H107: =$J$76/H103 -> 16.63021051
B109: Total Cost Breakeven | D109: =$J$79/D103 -> 65.269338 | F109: =$J$79/F103 -> 58.7424042 | H109: =$J$79/H103 -> 53.40218564

Sheet SWSW Mach Costs
B2: Soft White Spring Wheat Machinery Costs ($/acre)
D3: Fixed Costs ($/acre): | G3: Variable Costs ($/acre): | K3: Labor | M3: Fuel Use | N3: Total Cost
C4: Timing of Operation | D4: Capital Recovery Costs | E4: Taxes, Housing, Insurance, License | F4: Total Fixed Costs | G4: Repairs | H4: Fuel | I4: Lubricants | J4: Total
K5: ($/acre) | L5: (hr/acre) | M5: (gal/acre) | N5: ($/acre)
B6: 425HP-WT + 60' Heavy Harrow | C6: Sept | D6: ='Machinery Costs'!C18 -> 1.21 | E6: ='Machinery Costs'!D18 -> 0.129 | F6: ='Machinery Costs'!E18 -> 1.339 | G6: ='Machinery Costs'!F18 -> 0.56 | H6: ='Machinery Costs'!G18 -> 0.85 | I6: ='Machinery Costs'!H18 -> 0.15 | J6: ='Machinery Costs'!I18 -> 1.56 | K6: ='Machinery Costs'!J18 -> 0.51 | L6: ='Machinery Costs'!K18 -> 0.0255 | M6: ='Machinery Costs'!L18 -> 0.425 | N6: ='Machinery Costs'!M18 -> 3.409
B7: 200HP-WT + 100' Pull Sprayer1 | C7: October | D7: ='Machinery Costs'!C15 -> 1.86 | E7: ='Machinery Costs'!D15 -> 0.21 | F7: ='Machinery Costs'!E15 -> 2.07 | G7: ='Machinery Costs'!F15 -> 0.58 | H7: ='Machinery Costs'!G15 -> 0.34 | I7: ='Machinery Costs'!H15 -> 0.06 | J7: ='Machinery Costs'!I15 -> 0.98 | K7: ='Machinery Costs'!J15 -> 0.43 | L7: ='Machinery Costs'!K15 -> 0.0215 | M7: ='Machinery Costs'!L15 -> 0.17 | N7: ='Machinery Costs'!M15 -> 3.48
B8: 200HP-WT + 100' Pull Sprayer2 | C8: April | D8: ='Machinery Costs'!C15 -> 1.86 | E8: ='Machinery Costs'!D15 -> 0.21 | F8: ='Machinery Costs'!E15 -> 2.07 | G8: ='Machinery Costs'!F15 -> 0.58 | H8: ='Machinery Costs'!G15 -> 0.34 | I8: ='Machinery Costs'!H15 -> 0.06 | J8: ='Machinery Costs'!I15 -> 0.98 | K8: ='Machinery Costs'!J15 -> 0.43 | L8: ='Machinery Costs'!K15 -> 0.0215 | M8: ='Machinery Costs'!L15 -> 0.17 | N8: ='Machinery Costs'!M15 -> 3.48
B9: 36' NT Drill3 | C9: April | D9: ='Machinery Costs'!C19 -> 5.45 | E9: ='Machinery Costs'!D19 -> 0.58 | F9: ='Machinery Costs'!E19 -> 6.03 | G9: ='Machinery Costs'!F19 -> 3.12 | H9: ='Machinery Costs'!G19 -> 2.8135 | I9: ='Machinery Costs'!H19 -> 0.4965 | J9: ='Machinery Costs'!I19 -> 6.43 | K9: ='Machinery Costs'!J19 -> 1.69 | L9: ='Machinery Costs'!K19 -> 0.0845 | M9: ='Machinery Costs'!L19 -> 1.40675 | N9: ='Machinery Costs'!M19 -> 14.15
B10: 200HP-WT + 100' Pull Sprayer4 | C10: May | D10: ='Machinery Costs'!C15 -> 1.86 | E10: ='Machinery Costs'!D15 -> 0.21 | F10: ='Machinery Costs'!E15 -> 2.07 | G10: ='Machinery Costs'!F15 -> 0.58 | H10: ='Machinery Costs'!G15 -> 0.34 | I10: ='Machinery Costs'!H15 -> 0.06 | J10: ='Machinery Costs'!I15 -> 0.98 | K10: ='Machinery Costs'!J15 -> 0.43 | L10: ='Machinery Costs'!K15 -> 0.0215 | M10: ='Machinery Costs'!L15 -> 0.17 | N10: ='Machinery Costs'!M15 -> 3.48
B11: 36' Combine | C11: August | D11: ='Machinery Costs'!C20 -> 10.16 | E11: ='Machinery Costs'!D20 -> 0.87 | F11: ='Machinery Costs'!E20 -> 11.03 | G11: ='Machinery Costs'!F20 -> 1.43 | H11: ='Machinery Costs'!G20 -> 2.81 | I11: ='Machinery Costs'!H20 -> 0.5 | J11: ='Machinery Costs'!I20 -> 4.74 | K11: ='Machinery Costs'!J20 -> 1.69 | L11: ='Machinery Costs'!K20 -> 0.0845 | M11: ='Machinery Costs'!L20 -> 1.405 | N11: ='Machinery Costs'!M20 -> 17.46
B12: 200HP-WT + Bankout Wagon | C12: August | D12: ='Machinery Costs'!C21 -> 1.91 | E12: ='Machinery Costs'!D21 -> 0.2 | F12: ='Machinery Costs'!E21 -> 2.11 | G12: ='Machinery Costs'!F21 -> 0.82 | H12: ='Machinery Costs'!G21 -> 1.326 | I12: ='Machinery Costs'!H21 -> 0.234 | J12: ='Machinery Costs'!I21 -> 2.38 | K12: ='Machinery Costs'!J21 -> 1.69 | L12: ='Machinery Costs'!K21 -> 0.0845 | M12: ='Machinery Costs'!L21 -> 0.663 | N12: ='Machinery Costs'!M21 -> 6.18
B13: Pickup 3/4 ton 4WD, new | C13: Annual | D13: ='Machinery Costs'!C8 -> 2.16 | E13: ='Machinery Costs'!D8 -> 0.38 | F13: ='Machinery Costs'!E8 -> 2.54 | G13: ='Machinery Costs'!F8 -> 0.78 | H13: ='Machinery Costs'!G8 -> 0 | I13: ='Machinery Costs'!H8 -> 0.162 | J13: ='Machinery Costs'!I8 -> 0.942 | K13: ='Machinery Costs'!J8 -> 2.64 | L13: ='Machinery Costs'!K8 -> 0.132 | M13: ='Machinery Costs'!L8 -> 0 | N13: ='Machinery Costs'!M8 -> 6.122
B14: Pickup 3/4 ton 4WD, used | C14: Annual | D14: ='Machinery Costs'!C9 -> 1.56 | E14: ='Machinery Costs'!D9 -> 0.44 | F14: ='Machinery Costs'!E9 -> 2 | G14: ='Machinery Costs'!F9 -> 0.78 | H14: ='Machinery Costs'!G9 -> 1.224 | I14: ='Machinery Costs'!H9 -> 0.216 | J14: ='Machinery Costs'!I9 -> 2.22 | K14: ='Machinery Costs'!J9 -> 4.38 | L14: ='Machinery Costs'!K9 -> 0.219 | M14: ='Machinery Costs'!L9 -> 0.612 | N14: ='Machinery Costs'!M9 -> 8.6
B15: Tandem Axle Truck | C15: Annual | D15: ='Machinery Costs'!C10 -> 1.65 | E15: ='Machinery Costs'!D10 -> 0.99 | F15: ='Machinery Costs'!E10 -> 2.64 | G15: ='Machinery Costs'!F10 -> 0.99 | H15: ='Machinery Costs'!G10 -> 0.969 | I15: ='Machinery Costs'!H10 -> 0.171 | J15: ='Machinery Costs'!I10 -> 2.13 | K15: ='Machinery Costs'!J10 -> 3.3 | L15: ='Machinery Costs'!K10 -> 0.165 | M15: ='Machinery Costs'!L10 -> 0.4845 | N15: ='Machinery Costs'!M10 -> 8.07
B16: Tandem Axle Truck | C16: Annual | D16: ='Machinery Costs'!C11 -> 1.65 | E16: ='Machinery Costs'!D11 -> 0.99 | F16: ='Machinery Costs'!E11 -> 2.64 | G16: ='Machinery Costs'!F11 -> 0.99 | H16: ='Machinery Costs'!G11 -> 0.969 | I16: ='Machinery Costs'!H11 -> 0.171 | J16: ='Machinery Costs'!I11 -> 2.13 | K16: ='Machinery Costs'!J11 -> 3.3 | L16: ='Machinery Costs'!K11 -> 0.165 | M16: ='Machinery Costs'!L11 -> 0.4845 | N16: ='Machinery Costs'!M11 -> 8.07
B17: Trap Wagon | C17: Annual | D17: ='Machinery Costs'!C12 -> 0.92 | E17: ='Machinery Costs'!D12 -> 0.23 | F17: ='Machinery Costs'!E12 -> 1.15 | G17: ='Machinery Costs'!F12 -> 0.3 | H17: ='Machinery Costs'!G12 -> 0.051 | I17: ='Machinery Costs'!H12 -> 0.009 | J17: ='Machinery Costs'!I12 -> 0.36 | K17: ='Machinery Costs'!J12 -> 0.2 | L17: ='Machinery Costs'!K12 -> 0.01 | M17: ='Machinery Costs'!L12 -> 0.0255 | N17: ='Machinery Costs'!M12 -> 1.71
B18: Total: | D18: =SUM(D6:D17) -> 32.25 | E18: =SUM(E6:E17) -> 5.439 | F18: 37.689 | G18: 11.51 | H18: 12.0325 | I18: 2.2895 | J18: 25.832 | K18: 20.69 | L18: 1.0345 | M18: 6.01625 | N18: 84.211
B19: Note: Farm size is assumed to be 2000 acres for the purposes of machinery cost calculations.
B20: Comments:
B21: 1Typically 16-24 oz Roundup, 1.5 oz M90, 50 oz ammonium sulfate.
B22: 2Typically 16-24 oz Roundup, 1.5 oz M90, 50 oz ammonium sulfate.
B23: 3Typically 80 lb seed, 80 lb N, 20 lb P, 20 lb S.
B24: 4Typically a tankmix with broadleaf sprays such as Starane+Salvo (22 oz) and Brox M (12 oz) plus a surfactant such as R-11 (3.2 oz). In addition, a wildoat spray such as Axial (8.2 oz/ac) is used on about half the acreage (thus 4.1 oz per acre is budgeted).

Sheet HRSW Budget
B2: Legend: Follow directions below to preserve equations in this spreadsheet.
B3: Yellow Cells: Data are from Summary page (yellow tab).
B4: Orange Cells: Revise this data here to reflect your situation.
B5: Green Cells: Data are from Input Costs page (green tab).
B6: Blue Cells: Data are from the Machinery page (blue tab).
B8: Production Costs for Direct Seeded Hard Red Spring Wheat, Northern Idaho
D9: Quantity | H9: Price or | J9: Value or
B10: Item | D10: Per Acre | F10: Unit | H10: Cost/Unit | J10: Cost/Acre
B12: Gross Returns
B13: Hard Red Spring Wheat | D13: =yhrsw -> 58 | F13: bu | H13: =phrsw -> 6.79 | J13: =D13*H13 -> 393.82
B14: Variable Costs
B16: Seed: | J16: =SUM(J17:J17) -> 22
B17: Hard Red Spring Wheat Seed | D17: 100 | F17: lb | H17: =HRSWSd -> 0.22 | J17: =D17*H17 -> 22
B19: Fertilizer: | J19: =SUM(J20:J24) -> 88.5
B20: Nitrogen (dry) | D20: 110 | F20: lb | H20: =N -> 0.55 | J20: =D20*H20 -> 60.5
B21: Phosphorous (dry) | D21: 20 | F21: lb | H21: =P -> 1.17 | J21: =D21*H21 -> 23.4
B22: Potassium (dry) | D22: 0 | F22: lb | H22: =K -> 0.46 | J22: =D22*H22 -> 0
B23: Sulfur (dry) | D23: 20 | F23: lb | H23: =S -> 0.23 | J23: =D23*H23 -> 4.6
J24: =D24*H24 -> 0
B26: Pesticides: | J26: =SUM(J27:J34) -> 31.795
B27: Roundup | D27: 36 | F27: oz | H27: =Glyphosphate -> 0.39 | J27: =D27*H27 -> 14.04
B28: M90 | D28: 3 | F28: oz | H28: =M -> 0.01 | J28: 0.03
B29: Ammonium Sulfate | D29: 103.2 | F29: oz | H29: =AmmSulfLiq -> 0.02 | J29: 2.064
B30: Axial | D30: 4.1 | F30: oz | H30: =Axial -> 1.81 | J30: 7.421
B31: Brox M | D31: 12 | F31: oz | H31: =BroxM -> 0.3 | J31: 3.6
B32: Starane | D32: 8 | F32: oz | H32: =StaraneSalvo -> 0.43 | J32: 3.44
B33: InPlace | D33: 5 | F33: oz | H33: =InPlace -> 0.24 | J33: 1.2
J34: 0
B36: Fungicides: | J36: =SUM(J37:J39) -> 0
B37: Quilt | F37: oz | H37: =Quilt -> 1.22 | J37: =D37*H37 -> 0
B38: Syltac Sticker | F38: pt | H38: =Syltac -> 6.25 | J38: =D38*H38 -> 0
J39: =D39*H39 -> 0
B41: Machinery: | J41: =SUM(J42:J46) -> 46.522
B42: Fuel | D42: ='HRSW Mach Costs'!M18 -> 6.01625 | F42: gal | H42: =Diesel -> 2 | J42: =D42*H42 -> 12.0325
B43: Lubricants | D43: 1 | F43: acre | H43: ='HRSW Mach Costs'!I18 -> 2.2895 | J43: =D43*H43 -> 2.2895
B44: Machinery Repairs | D44: 1 | F44: acre | H44: ='HRSW Mach Costs'!G18 -> 11.51 | J44: =D44*H44 -> 11.51
B45: Machinery Labor | D45: ='HRSW Mach Costs'!L18 -> 1.0345 | F45: acre | H45: =Labor -> 20 | J45: =D45*H45 -> 20.69
J46: =D46*H46 -> 0
B48: Custom & Consultants: | J48: =SUM(J49:J51) -> 0
B49: Rental Sprayer Applicator | D49: 0 | F49: acre | H49: =Sprayer -> 1.75 | J49: =D49*H49 -> 0
B50: Custom Aerial | D50: 0 | F50: acre | H50: =Aerial -> 6.5 | J50: =D50*H50 -> 0
J51: =D51*H51 -> 0
B53: Other: | J53: =SUM(J54:J56) -> 20
B54: Crop insurance | D54: 1 | F54: acre | H54: 20 | J54: =D54*H54 -> 20
B55: Storage Facility & Equip. Repairs | J55: =D55*H55 -> 0
J56: =D56*H56 -> 0
B58: Overhead1 | J58: =(J16+J19+J26+J36+J48+J53)*0.05 -> 8.11475
B59: Operating Interest2 | J59: =+(J16+J19+J26+J36+J48+J53)*operloan*0.5 -> 6.0860625
B61: Total Variable Costs | J61: =SUM(J16:J59)-(J16+J19+J26+J36+J41+J48+J53) -> 223.0178125
B62: Variable Costs per Unit | J62: =J61/D13 -> 3.845134698
B64: Net Returns Above Variable Costs | J64: =J13-J61 -> 170.8021875
B65: Fixed Costs:
B66: Capital recovery costs | J66: ='HRSW Mach Costs'!D18 -> 32.25
B67: Machinery insurance, taxes, housing, licenses | J67: ='HRSW Mach Costs'!E18 -> 5.439
B68: Land Cost* | D68: 1 | F68: acre | H68: =+(D13*H13)*D70-(J19+J26+J36+H54)*D70-J74 -> 79.76325 | J68: =H68 -> 79.76325
B69: *Based on Share Rent Percentage:
B70: Landlord | D70: =+ownershare -> 0.33
B71: Tenant | D71: =opershare -> 0.67
B73: Cash rent | J73: =cashrent -> 0
B74: Land taxes | J74: =landtax -> 3.9
B76: Total Fixed Costs | J76: =SUM(J65:J74) -> 121.35225
B77: Fixed Costs per Unit | J77: =J76/D13 -> 2.092280172
B79: Total Costs per Acre | J79: =J61+J76 -> 344.3700625
B80: Total Cost per Unit | J80: =J79/D13 -> 5.937414871
B82: Returns to Risk | J82: =J13-J79 -> 49.4499375
B84: Notes:
B85: 1Covers legal, accounting, and utility fees. Calculated as 5% of operating expenses.
B86: 2Calculated at 7% interest on operating capital for 6 months.
B90: Breakeven Analysis: | D90: - | F90: Base | H90: +
D91: 0.1 | H91: 0.1
F92: Yield
B93: Price | D93: =F93*(1-D91) -> 52.2 | F93: =D13 -> 58 | H93: =F93*(1+H91) -> 63.8
B95: Operating Cost Breakeven | D95: =$J$61/D93 -> 4.272371887 | F95: =$J$61/F93 -> 3.845134698 | H95: =$J$61/H93 -> 3.495576998
B97: Ownership Cost Breakeven | D97: =$J$76/D93 -> 2.324755747 | F97: =$J$76/F93 -> 2.092280172 | H97: =$J$76/H93 -> 1.902072884
B99: Total Cost Breakeven | D99: =$J$79/D93 -> 6.597127634 | F99: =$J$79/F93 -> 5.937414871 | H99: =$J$79/H93 -> 5.397649882
F102: Price
B103: Yield | D103: =F103*(1-D91) -> 6.111 | F103: =H13 -> 6.79 | H103: =F103*(1+H91) -> 7.469
B105: Operating Cost Breakeven | D105: =$J$61/D103 -> 36.4944874 | F105: =$J$61/F103 -> 32.84503866 | H105: =$J$61/H103 -> 29.85912605
B107: Ownership Cost Breakeven | D107: =$J$76/D103 -> 19.85800196 | F107: =$J$76/F103 -> 17.87220177 | H107: =$J$76/H103 -> 16.24745615
B109: Total Cost Breakeven | D109: =$J$79/D103 -> 56.35248936 | F109: =$J$79/F103 -> 50.71724043 | H109: =$J$79/H103 -> 46.10658221

Sheet HRSW Mach Costs
B2: Hard Red Spring Wheat Machinery Costs ($/acre)
D3: Fixed Costs ($/acre): | G3: Variable Costs ($/acre): | K3: Labor | M3: Fuel Use | N3: Total Cost
C4: Timing of Operation | D4: Capital Recovery Costs | E4: Taxes, Housing, Insurance, License | F4: Total Fixed Costs | G4: Repairs | H4: Fuel | I4: Lubricants | J4: Total
K5: ($/acre) | L5: (hr/acre) | M5: (gal/acre) | N5: ($/acre)
B6: 425HP-WT + 60' Heavy Harrow | C6: Sept | D6: ='Machinery Costs'!C18 -> 1.21 | E6: ='Machinery Costs'!D18 -> 0.129 | F6: ='Machinery Costs'!E18 -> 1.339 | G6: ='Machinery Costs'!F18 -> 0.56 | H6: ='Machinery Costs'!G18 -> 0.85 | I6: ='Machinery Costs'!H18 -> 0.15 | J6: ='Machinery Costs'!I18 -> 1.56 | K6: ='Machinery Costs'!J18 -> 0.51 | L6: ='Machinery Costs'!K18 -> 0.0255 | M6: ='Machinery Costs'!L18 -> 0.425 | N6: ='Machinery Costs'!M18 -> 3.409
B7: 200HP-WT + 100' Pull Sprayer1 | C7: October | D7: ='Machinery Costs'!C15 -> 1.86 | E7: ='Machinery Costs'!D15 -> 0.21 | F7: ='Machinery Costs'!E15 -> 2.07 | G7: ='Machinery Costs'!F15 -> 0.58 | H7: ='Machinery Costs'!G15 -> 0.34 | I7: ='Machinery Costs'!H15 -> 0.06 | J7: ='Machinery Costs'!I15 -> 0.98 | K7: ='Machinery Costs'!J15 -> 0.43 | L7: ='Machinery Costs'!K15 -> 0.0215 | M7: ='Machinery Costs'!L15 -> 0.17 | N7: ='Machinery Costs'!M15 -> 3.48
B8: 200HP-WT + 100' Pull Sprayer2 | C8: April | D8: ='Machinery Costs'!C15 -> 1.86 | E8: ='Machinery Costs'!D15 -> 0.21 | F8: ='Machinery Costs'!E15 -> 2.07 | G8: ='Machinery Costs'!F15 -> 0.58 | H8: ='Machinery Costs'!G15 -> 0.34 | I8: ='Machinery Costs'!H15 -> 0.06 | J8: ='Machinery Costs'!I15 -> 0.98 | K8: ='Machinery Costs'!J15 -> 0.43 | L8: ='Machinery Costs'!K15 -> 0.0215 | M8: ='Machinery Costs'!L15 -> 0.17 | N8: ='Machinery Costs'!M15 -> 3.48
B9: 36' NT Drill3 | C9: April | D9: ='Machinery Costs'!C19 -> 5.45 | E9: ='Machinery Costs'!D19 -> 0.58 | F9: ='Machinery Costs'!E19 -> 6.03 | G9: ='Machinery Costs'!F19 -> 3.12 | H9: ='Machinery Costs'!G19 -> 2.8135 | I9: ='Machinery Costs'!H19 -> 0.4965 | J9: ='Machinery Costs'!I19 -> 6.43 | K9: ='Machinery Costs'!J19 -> 1.69 | L9: ='Machinery Costs'!K19 -> 0.0845 | M9: ='Machinery Costs'!L19 -> 1.40675 | N9: ='Machinery Costs'!M19 -> 14.15
B10: 200HP-WT + 100' Pull Sprayer4 | C10: May | D10: ='Machinery Costs'!C15 -> 1.86 | E10: ='Machinery Costs'!D15 -> 0.21 | F10: ='Machinery Costs'!E15 -> 2.07 | G10: ='Machinery Costs'!F15 -> 0.58 | H10: ='Machinery Costs'!G15 -> 0.34 | I10: ='Machinery Costs'!H15 -> 0.06 | J10: ='Machinery Costs'!I15 -> 0.98 | K10: ='Machinery Costs'!J15 -> 0.43 | L10: ='Machinery Costs'!K15 -> 0.0215 | M10: ='Machinery Costs'!L15 -> 0.17 | N10: ='Machinery Costs'!M15 -> 3.48
B11: 36' Combine | C11: August | D11: ='Machinery Costs'!C20 -> 10.16 | E11: ='Machinery Costs'!D20 -> 0.87 | F11: ='Machinery Costs'!E20 -> 11.03 | G11: ='Machinery Costs'!F20 -> 1.43 | H11: ='Machinery Costs'!G20 -> 2.81 | I11: ='Machinery Costs'!H20 -> 0.5 | J11: ='Machinery Costs'!I20 -> 4.74 | K11: ='Machinery Costs'!J20 -> 1.69 | L11: ='Machinery Costs'!K20 -> 0.0845 | M11: ='Machinery Costs'!L20 -> 1.405 | N11: ='Machinery Costs'!M20 -> 17.46
B12: 200HP-WT + Bankout Wagon | C12: August | D12: ='Machinery Costs'!C21 -> 1.91 | E12: ='Machinery Costs'!D21 -> 0.2 | F12: ='Machinery Costs'!E21 -> 2.11 | G12: ='Machinery Costs'!F21 -> 0.82 | H12: ='Machinery Costs'!G21 -> 1.326 | I12: ='Machinery Costs'!H21 -> 0.234 | J12: ='Machinery Costs'!I21 -> 2.38 | K12: ='Machinery Costs'!J21 -> 1.69 | L12: ='Machinery Costs'!K21 -> 0.0845 | M12: ='Machinery Costs'!L21 -> 0.663 | N12: ='Machinery Costs'!M21 -> 6.18
B13: Pickup 3/4 ton 4WD, new | C13: Annual | D13: ='Machinery Costs'!C8 -> 2.16 | E13: ='Machinery Costs'!D8 -> 0.38 | F13: ='Machinery Costs'!E8 -> 2.54 | G13: ='Machinery Costs'!F8 -> 0.78 | H13: ='Machinery Costs'!G8 -> 0 | I13: ='Machinery Costs'!H8 -> 0.162 | J13: ='Machinery Costs'!I8 -> 0.942 | K13: ='Machinery Costs'!J8 -> 2.64 | L13: ='Machinery Costs'!K8 -> 0.132 | M13: ='Machinery Costs'!L8 -> 0 | N13: ='Machinery Costs'!M8 -> 6.122
B14: Pickup 3/4 ton 4WD, used | C14: Annual | D14: ='Machinery Costs'!C9 -> 1.56 | E14: ='Machinery Costs'!D9 -> 0.44 | F14: ='Machinery Costs'!E9 -> 2 | G14: ='Machinery Costs'!F9 -> 0.78 | H14: ='Machinery Costs'!G9 -> 1.224 | I14: ='Machinery Costs'!H9 -> 0.216 | J14: ='Machinery Costs'!I9 -> 2.22 | K14: ='Machinery Costs'!J9 -> 4.38 | L14: ='Machinery Costs'!K9 -> 0.219 | M14: ='Machinery Costs'!L9 -> 0.612 | N14: ='Machinery Costs'!M9 -> 8.6
B15: Tandem Axle Truck | C15: Annual | D15: ='Machinery Costs'!C10 -> 1.65 | E15: ='Machinery Costs'!D10 -> 0.99 | F15: ='Machinery Costs'!E10 -> 2.64 | G15: ='Machinery Costs'!F10 -> 0.99 | H15: ='Machinery Costs'!G10 -> 0.969 | I15: ='Machinery Costs'!H10 -> 0.171 | J15: ='Machinery Costs'!I10 -> 2.13 | K15: ='Machinery Costs'!J10 -> 3.3 | L15: ='Machinery Costs'!K10 -> 0.165 | M15: ='Machinery Costs'!L10 -> 0.4845 | N15: ='Machinery Costs'!M10 -> 8.07
B16: Tandem Axle Truck | C16: Annual | D16: ='Machinery Costs'!C11 -> 1.65 | E16: ='Machinery Costs'!D11 -> 0.99 | F16: ='Machinery Costs'!E11 -> 2.64 | G16: ='Machinery Costs'!F11 -> 0.99 | H16: ='Machinery Costs'!G11 -> 0.969 | I16: ='Machinery Costs'!H11 -> 0.171 | J16: ='Machinery Costs'!I11 -> 2.13 | K16: ='Machinery Costs'!J11 -> 3.3 | L16: ='Machinery Costs'!K11 -> 0.165 | M16: ='Machinery Costs'!L11 -> 0.4845 | N16: ='Machinery Costs'!M11 -> 8.07
B17: Trap Wagon | C17: Annual | D17: ='Machinery Costs'!C12 -> 0.92 | E17: ='Machinery Costs'!D12 -> 0.23 | F17: ='Machinery Costs'!E12 -> 1.15 | G17: ='Machinery Costs'!F12 -> 0.3 | H17: ='Machinery Costs'!G12 -> 0.051 | I17: ='Machinery Costs'!H12 -> 0.009 | J17: ='Machinery Costs'!I12 -> 0.36 | K17: ='Machinery Costs'!J12 -> 0.2 | L17: ='Machinery Costs'!K12 -> 0.01 | M17: ='Machinery Costs'!L12 -> 0.0255 | N17: ='Machinery Costs'!M12 -> 1.71
B18: Total: | D18: =SUM(D6:D17) -> 32.25 | E18: =SUM(E6:E17) -> 5.439 | F18: 37.689 | G18: 11.51 | H18: 12.0325 | I18: 2.2895 | J18: 25.832 | K18: 20.69 | L18: 1.0345 | M18: 6.01625 | N18: 84.211
B19: Note: Farm size is assumed to be 2000 acres for the purposes of machinery cost calculations.
B20: Comments:
B21: 1Typically 16-24 oz Roundup, 1.5 oz M90, 50 oz ammonium sulfate.
B22: 2Typically 16-24 oz Roundup, 1.5 oz M90, 50 oz ammonium sulfate.
B23: 3Typically 100 lb seed, 110 lb N, 20 lb P, 20 lb S.
B24: 4Typically a tankmix with broadleaf sprays such as Starane+Salvo (22 oz) and Brox M (1.6 oz) plus a surfactant such as R-11 (3.2 oz). In addition, a wildoat spray such as Axial (8.2 oz/ac) is used on about half the acreage (thus 4.1 oz per acre is budgeted).

Sheet BGE Budget
B2: Legend: Follow directions below to preserve equations in this spreadsheet.
B3: Yellow Cells: Data are from Summary page (yellow tab).
B4: Orange Cells: Revise this data here to reflect your situation.
B5: Green Cells: Data are from Input Costs page (green tab).
B6: Blue Cells: Data are from the Machinery page (blue tab).
B8: Production Costs for Direct Seeded Bluegrass Establishment, Northern Idaho
D9: Quantity | H9: Price or | J9: Value or
B10: Item | D10: Per Acre | F10: Unit | H10: Cost/Unit | J10: Cost/Acre
B13: Variable Costs
B15: Seed: | J15: =SUM(J16:J16) -> 16.9875
B16: Bluegrass Seed | D16: 45 | F16: lb | H16: =BGSd -> 0.3775 | J16: =D16*H16 -> 16.9875
B18: Fertilizer: | J18: =SUM(J19:J20) -> 0
J19: =D19*H19 -> 0
J20: =D20*H20 -> 0
B22: Pesticides: | J22: =SUM(J23:J25) -> 0
F23: oz | J23: =D23*H23 -> 0
F24: oz | J24: 0
F25: oz | J25: 0
B27: Machinery: | J27: =SUM(J28:J32) -> 38.584
B28: Fuel | D28: ='BGE Mach Costs'!M15 -> 4.58575 | F28: gal | H28: =Diesel -> 2 | J28: =D28*H28 -> 9.1715
B29: Lubricants | D29: 1 | F29: acre | H29: ='BGE Mach Costs'!I15 -> 1.7805 | J29: =D29*H29 -> 1.7805
B30: Machinery Repairs | D30: 1 | F30: acre | H30: ='BGE Mach Costs'!G15 -> 8.672 | J30: =D30*H30 -> 8.672
B31: Machinery Labor | D31: ='BGE Mach Costs'!L15 -> 0.948 | F31: acre | H31: =Labor -> 20 | J31: =D31*H31 -> 18.96
J32: =D32*H32 -> 0
B34: Custom & Consultants: | J34: =SUM(J35:J37) -> 0
B35: Rental Sprayer | F35: acre | H35: =Sprayer -> 1.75 | J35: =D35*H35 -> 0
B36: Custom Aerial Spray | F36: acre | H36: =Aerial -> 6.5 | J36: =D36*H36 -> 0
J37: =D37*H37 -> 0
B39: Other: | J39: =SUM(J40:J40) -> 0
J40: =D40*H40 -> 0
B42: Overhead1 | J42: =(J15+J18+J22+J34+J39)*0.05 -> 0.849375
B43: Operating Interest2 | J43: =+(J15+J18+J22+J34+J39)*operloan*0.5 -> 0.63703125
B45: Total Variable Costs | J45: =SUM(J15:J43)-(J15+J18+J22+J27+J34+J39) -> 57.05790625
B47: Fixed Costs:
B48: Capital recovery costs | J48: ='BGE Mach Costs'!D15 -> 18.64
B49: Machinery insurance, taxes, housing, licenses | J49: ='BGE Mach Costs'!E15 -> 4.179
B51: Cash rent | J51: =cashrent -> 0
B52: Land taxes | J52: =landtax -> 3.9
B54: Total Fixed Costs | J54: =SUM(J47:J52) -> 26.719
B56: Total Costs per Acre | J56: =J45+J54 -> 83.77690625
B58: Notes:
B59: 1Covers legal, accounting, and utility fees. Calculated as 5% of operating expenses.
B60: 2Calculated at 7% interest on operating capital for 6 months.

Sheet BGE Mach Costs
B2: Bluegrass Seed Establishment Machinery Costs ($/acre)
D3: Fixed Costs ($/acre): | G3: Variable Costs ($/acre): | K3: Labor | M3: Fuel Use | N3: Total Cost
C4: Timing of Operation | D4: Capital Recovery Costs | E4: Taxes, Housing, Insurance, License | F4: Total Fixed Costs | G4: Repairs | H4: Fuel | I4: Lubricants | J4: Total
K5: ($/acre) | L5: (hr/acre) | M5: (gal/acre) | N5: ($/acre)
B6: 425HP-WT + 60' Heavy Harrow | C6: Sept | D6: ='Machinery Costs'!C18 -> 1.21 | E6: ='Machinery Costs'!D18 -> 0.129 | F6: ='Machinery Costs'!E18 -> 1.339 | G6: ='Machinery Costs'!F18 -> 0.56 | H6: ='Machinery Costs'!G18 -> 0.85 | I6: ='Machinery Costs'!H18 -> 0.15 | J6: ='Machinery Costs'!I18 -> 1.56 | K6: ='Machinery Costs'!J18 -> 0.51 | L6: ='Machinery Costs'!K18 -> 0.0255 | M6: ='Machinery Costs'!L18 -> 0.425 | N6: ='Machinery Costs'!M18 -> 3.409
B7: 36' NT Drill1 | C7: Sept | D7: ='Machinery Costs'!C19 -> 5.45 | E7: ='Machinery Costs'!D19 -> 0.58 | F7: ='Machinery Costs'!E19 -> 6.03 | G7: ='Machinery Costs'!F19 -> 3.12 | H7: ='Machinery Costs'!G19 -> 2.8135 | I7: ='Machinery Costs'!H19 -> 0.4965 | J7: ='Machinery Costs'!I19 -> 6.43 | K7: ='Machinery Costs'!J19 -> 1.69 | L7: ='Machinery Costs'!K19 -> 0.0845 | M7: ='Machinery Costs'!L19 -> 1.40675 | N7: ='Machinery Costs'!M19 -> 14.15
B8: 200HP-WT + 20' Rotary Mower | C8: June | D8: ='Machinery Costs'!C16 -> 2.02 | E8: ='Machinery Costs'!D16 -> 0.22 | F8: ='Machinery Costs'!E16 -> 2.24 | G8: ='Machinery Costs'!F16 -> 0.576 | H8: ='Machinery Costs'!G16 -> 1.1475 | I8: ='Machinery Costs'!H16 -> 0.2025 | J8: ='Machinery Costs'!I16 -> 1.926 | K8: ='Machinery Costs'!J16 -> 1.47 | L8: ='Machinery Costs'!K16 -> 0.0735 | M8: ='Machinery Costs'!L16 -> 0.57375 | N8: ='Machinery Costs'!M16 -> 5.636
B9: 200HP-WT + 20' Rotary Mower | C9: July | D9: ='Machinery Costs'!C16 -> 2.02 | E9: ='Machinery Costs'!D16 -> 0.22 | F9: ='Machinery Costs'!E16 -> 2.24 | G9: ='Machinery Costs'!F16 -> 0.576 | H9: ='Machinery Costs'!G16 -> 1.1475 | I9: ='Machinery Costs'!H16 -> 0.2025 | J9: ='Machinery Costs'!I16 -> 1.926 | K9: ='Machinery Costs'!J16 -> 1.47 | L9: ='Machinery Costs'!K16 -> 0.0735 | M9: ='Machinery Costs'!L16 -> 0.57375 | N9: ='Machinery Costs'!M16 -> 5.636
B10: Pickup 3/4 ton 4WD, new | C10: Annual | D10: ='Machinery Costs'!C8 -> 2.16 | E10: ='Machinery Costs'!D8 -> 0.38 | F10: ='Machinery Costs'!E8 -> 2.54 | G10: ='Machinery Costs'!F8 -> 0.78 | H10: ='Machinery Costs'!G8 -> 0 | I10: ='Machinery Costs'!H8 -> 0.162 | J10: ='Machinery Costs'!I8 -> 0.942 | K10: ='Machinery Costs'!J8 -> 2.64 | L10: ='Machinery Costs'!K8 -> 0.132 | M10: ='Machinery Costs'!L8 -> 0 | N10: ='Machinery Costs'!M8 -> 6.122
B11: Pickup 3/4 ton 4WD, used | C11: Annual | D11: ='Machinery Costs'!C9 -> 1.56 | E11: ='Machinery Costs'!D9 -> 0.44 | F11: ='Machinery Costs'!E9 -> 2 | G11: ='Machinery Costs'!F9 -> 0.78 | H11: ='Machinery Costs'!G9 -> 1.224 | I11: ='Machinery Costs'!H9 -> 0.216 | J11: ='Machinery Costs'!I9 -> 2.22 | K11: ='Machinery Costs'!J9 -> 4.38 | L11: ='Machinery Costs'!K9 -> 0.219 | M11: ='Machinery Costs'!L9 -> 0.612 | N11: ='Machinery Costs'!M9 -> 8.6
B12: Tandem Axle Truck | C12: Annual | D12: ='Machinery Costs'!C10 -> 1.65 | E12: ='Machinery Costs'!D10 -> 0.99 | F12: ='Machinery Costs'!E10 -> 2.64 | G12: ='Machinery Costs'!F10 -> 0.99 | H12: ='Machinery Costs'!G10 -> 0.969 | I12: ='Machinery Costs'!H10 -> 0.171 | J12: ='Machinery Costs'!I10 -> 2.13 | K12: ='Machinery Costs'!J10 -> 3.3 | L12: ='Machinery Costs'!K10 -> 0.165 | M12: ='Machinery Costs'!L10 -> 0.4845 | N12: ='Machinery Costs'!M10 -> 8.07
B13: Tandem Axle Truck | C13: Annual | D13: ='Machinery Costs'!C11 -> 1.65 | E13: ='Machinery Costs'!D11 -> 0.99 | F13: ='Machinery Costs'!E11 -> 2.64 | G13: ='Machinery Costs'!F11 -> 0.99 | H13: ='Machinery Costs'!G11 -> 0.969 | I13: ='Machinery Costs'!H11 -> 0.171 | J13: ='Machinery Costs'!I11 -> 2.13 | K13: ='Machinery Costs'!J11 -> 3.3 | L13: ='Machinery Costs'!K11 -> 0.165 | M13: ='Machinery Costs'!L11 -> 0.4845 | N13: ='Machinery Costs'!M11 -> 8.07
B14: Trap Wagon | C14: Annual | D14: ='Machinery Costs'!C12 -> 0.92 | E14: ='Machinery Costs'!D12 -> 0.23 | F14: ='Machinery Costs'!E12 -> 1.15 | G14: ='Machinery Costs'!F12 -> 0.3 | H14: ='Machinery Costs'!G12 -> 0.051 | I14: ='Machinery Costs'!H12 -> 0.009 | J14: ='Machinery Costs'!I12 -> 0.36 | K14: ='Machinery Costs'!J12 -> 0.2 | L14: ='Machinery Costs'!K12 -> 0.01 | M14: ='Machinery Costs'!L12 -> 0.0255 | N14: ='Machinery Costs'!M12 -> 1.71
B15: Total: | D15: =SUM(D6:D14) -> 18.64 | E15: =SUM(E6:E14) -> 4.179 | F15: 22.819 | G15: 8.672 | H15: 9.1715 | I15: 1.7805 | J15: 19.624 | K15: 18.96 | L15: 0.948 | M15: 4.58575 | N15: =SUM(N6:N14) -> 61.403
B16: Note: Farm size is assumed to be 2000 acres for the purposes of machinery cost calculations.
B17: Comments:
B18: 15.5 lb bluegrass seed.

Sheet BG Budget
B2: Legend: Follow directions below to preserve equations in this spreadsheet.
B3: Yellow Cells: Data are from Summary page (yellow tab).
B4: Orange Cells: Revise this data here to reflect your situation.
B5: Green Cells: Data are from Input Costs page (green tab).
B6: Blue Cells: Data are from the Machinery page (blue tab).
B8: Production Costs for Direct Seeded Bluegrass Production, Northern Idaho
D9: Quantity | H9: Price or | J9: Value or
B10: Item | D10: Per Acre | F10: Unit | H10: Cost/Unit | J10: Cost/Acre
B12: Gross Returns
B13: Bluegrass seed | D13: =Summary!D20 -> 675 | F13: lb | H13: 1.5 | J13: =D13*H13 -> 1012.5
B15: Variable Costs
B18: Fertilizer: | J18: =SUM(J19:J22) -> 104.55
B19: Nitrogen | D19: 135 | F19: lb | H19: =N -> 0.55 | J19: =D19*H19 -> 74.25
B20: Phosphorus | D20: 20 | F20: lb | H20: =P -> 1.17 | J20: =D20*H20 -> 23.4
B21: Sulfur | D21: 30 | F21: lb | H21: =S -> 0.23 | J21: =D21*H21 -> 6.9
J22: =D22*H22 -> 0
B24: Pesticides: | J24: =SUM(J25:J31) -> 25.16
B25: Banvel 4E | D25: 8 | F25: oz | H25: =banvel -> 0.77 | J25: =D25*H25 -> 6.16
B26: Beacon | D26: 0.5 | F26: oz | H26: =beacon -> 32 | J26: 16
B27: Crop oil concentrate | D27: 3 | F27: pt | H27: =COC -> 1 | J27: 3
J28: 0
J29: 0
J30: 0
J31: 0
B33: Machinery: | J33: =SUM(J34:J38) -> 35.24
B34: Fuel | D34: ='BG Mach Costs'!M16 -> 4.166 | F34: gal | H34: =Diesel -> 2 | J34: =D34*H34 -> 8.332
B35: Lubricants | D35: 1 | F35: acre | H35: ='BG Mach Costs'!I16 -> 1.633 | J35: =D35*H35 -> 1.633
B36: Machinery Repairs | D36: 1 | F36: acre | H36: ='BG Mach Costs'!G16 -> 6.825 | J36: =D36*H36 -> 6.825
B37: Machinery Labor | D37: ='BG Mach Costs'!L16 -> 0.9225 | F37: acre | H37: =Labor -> 20 | J37: =D37*H37 -> 18.45
J38: =D38*H38 -> 0
B40: Custom & Consultants: | J40: =SUM(J41:J43) -> 18
B41: Rental Fertilizer Spreader | D41: 1 | F41: acre | H41: =FertApplicator -> 1 | J41: =D41*H41 -> 1
B42: Custom Swathing | D42: 1 | F42: acre | H42: =swathing -> 15 | J42: =D42*H42 -> 15
B43: Hauling ($75 per 25,000 lb load) | D43: 1 | F43: acre | H43: 2 | J43: =D43*H43 -> 2
B45: Other: | J45: =SUM(J46:J48) -> 89.75
B46: Crop insurance | D46: 1 | F46: acre | J46: =D46*H46 -> 0
B47: Burning permit | D47: 1 | F47: acre | H47: =burn -> 2 | J47: =D47*H47 -> 2
B48: Bags, tags, etc. | D48: =D13/100 -> 6.75 | F48: cwt | H48: =BGmisc -> 13 | J48: =D48*H48 -> 87.75
B50: Overhead1 | J50: =(J18+J24+J33+J40+J45)*0.05 -> 13.635
B51: Operating Interest2 | J51: =+(J18+J24+J33+J40+J45)*operloan*0.5 -> 10.22625
B53: Total Variable Costs | J53: =SUM(J17:J51)-(J18+J24+J33+J40+J45) -> 296.56125
B54: Variable Costs per Unit | J54: =J53/D13 -> 0.43935
B56: Net Returns Above Variable Costs | J56: =J13-J53 -> 715.93875
B57: Fixed Costs:
B58: Capital recovery costs | J58: ='BG Mach Costs'!D16 -> 22.46
B59: Machinery insurance, taxes, housing, licenses | J59: ='BG Mach Costs'!E16 -> 4.37
B60: Land Cost* | D60: 1 | F60: acre | H60: =+(D13*H13)*D62-(J18+J24+H46)*D62-J68 -> 287.4207 | J60: =H60 -> 287.4207
B61: *Based on Share Rent Percentage:
B62: Landlord | D62: =+ownershare -> 0.33
B63: Tenant | D63: =opershare -> 0.67
B65: Bluegrass establishment cost* | J65: =-PMT(0.08,D66,'BGE Budget'!J56) -> 18.12223383
B66: *Based on years of production: | D66: 6
B67: Cash rent | J67: =cashrent -> 0
B68: Land taxes | J68: =landtax -> 3.9
B70: Total Fixed Costs | J70: =SUM(J57:J68) -> 336.2729338
B71: Fixed Costs per Unit | J71: =J70/D13 -> 0.4981821242
B73: Total Costs per Acre | J73: =J53+J70 -> 632.8341838
B74: Total Cost per Unit | J74: =J73/D13 -> 0.9375321242
B76: Returns to Risk | J76: =J13-J73 -> 379.6658162
B78: Notes:
B79: 1Covers legal, accounting, and utility fees. Calculated as 5% of operating expenses.
B80: 2Calculated at 7% interest on operating capital for 6 months.
B84: Breakeven Analysis: | D84: - | F84: Base | H84: +
D85: 0.1 | H85: 0.1
F86: Yield
B87: Price | D87: =F87*(1-D85) -> 607.5 | F87: =D13 -> 675 | H87: =F87*(1+H85) -> 742.5
B89: Operating Cost Breakeven | D89: =$J$53/D87 -> 0.4881666667 | F89: =$J$53/F87 -> 0.43935 | H89: =$J$53/H87 -> 0.3994090909
B91: Ownership Cost Breakeven | D91: =$J$70/D87 -> 0.5535356936 | F91: =$J$70/F87 -> 0.4981821242 | H91: =$J$70/H87 -> 0.4528928402
B93: Total Cost Breakeven | D93: =$J$73/D87 -> 1.04170236 | F93: =$J$73/F87 -> 0.9375321242 | H93: =$J$73/H87 -> 0.8523019311
F96: Price
B97: Yield | D97: =F97*(1-D85) -> 1.35 | F97: =H13 -> 1.5 | H97: =F97*(1+H85) -> 1.65
B99: Operating Cost Breakeven | D99: =$J$53/D97 -> 219.675 | F99: =$J$53/F97 -> 197.7075 | H99: =$J$53/H97 -> 179.7340909
B101: Ownership Cost Breakeven | D101: =$J$70/D97 -> 249.0910621 | F101: =$J$70/F97 -> 224.1819559 | H101: =$J$70/H97 -> 203.8017781
B103: Total Cost Breakeven | D103: =$J$73/D97 -> 468.7660621 | F103: =$J$73/F97 -> 421.8894559 | H103: =$J$73/H97 -> 383.535869

Sheet BG Mach Costs
B2: Bluegrass Production Machinery Costs ($/acre)
D3: Fixed Costs ($/acre): | G3: Variable Costs ($/acre): | K3: Labor | M3: Fuel Use | N3: Total Cost
C4: Timing of Operation | D4: Capital Recovery Costs | E4: Taxes, Housing, Insurance, License | F4: Total Fixed Costs | G4: Repairs | H4: Fuel | I4: Lubricants | J4: Total
K5: ($/acre) | L5: (hr/acre) | M5: (gal/acre) | N5: ($/acre)
B6: 200HP-WT + Fert. Spreader1 | C6: October | D6: ='Machinery Costs'!C17 -> 0.59 | E6: ='Machinery Costs'!D17 -> 0.06 | F6: ='Machinery Costs'!E17 -> 0.65 | G6: ='Machinery Costs'!F17 -> 0.155 | H6: ='Machinery Costs'!G17 -> 0.643 | I6: ='Machinery Costs'!H17 -> 0.11 | J6: ='Machinery Costs'!I17 -> 0.908 | K6: ='Machinery Costs'!J17 -> 0.82 | L6: ='Machinery Costs'!K17 -> 0.041 | M6: ='Machinery Costs'!L17 -> 0.3215 | N6: ='Machinery Costs'!M17 -> 2.378
B7: 200HP-WT + 100' Pull Sprayer2 | C7: April | D7: ='Machinery Costs'!C15 -> 1.86 | E7: ='Machinery Costs'!D15 -> 0.21 | F7: ='Machinery Costs'!E15 -> 2.07 | G7: ='Machinery Costs'!F15 -> 0.58 | H7: ='Machinery Costs'!G15 -> 0.34 | I7: ='Machinery Costs'!H15 -> 0.06 | J7: ='Machinery Costs'!I15 -> 0.98 | K7: ='Machinery Costs'!J15 -> 0.43 | L7: ='Machinery Costs'!K15 -> 0.0215 | M7: ='Machinery Costs'!L15 -> 0.17 | N7: ='Machinery Costs'!M15 -> 3.48
B8: Custom Swathing | C8: July
B9: 36' Combine | C9: August | D9: ='Machinery Costs'!C20 -> 10.16 | E9: ='Machinery Costs'!D20 -> 0.87 | F9: ='Machinery Costs'!E20 -> 11.03 | G9: ='Machinery Costs'!F20 -> 1.43 | H9: ='Machinery Costs'!G20 -> 2.81 | I9: ='Machinery Costs'!H20 -> 0.5 | J9: ='Machinery Costs'!I20 -> 4.74 | K9: ='Machinery Costs'!J20 -> 1.69 | L9: ='Machinery Costs'!K20 -> 0.0845 | M9: ='Machinery Costs'!L20 -> 1.405 | N9: ='Machinery Costs'!M20 -> 17.46
B10: 200HP-WT + Bankout Wagon | C10: August | D10: ='Machinery Costs'!C21 -> 1.91 | E10: ='Machinery Costs'!D21 -> 0.2 | F10: ='Machinery Costs'!E21 -> 2.11 | G10: ='Machinery Costs'!F21 -> 0.82 | H10: ='Machinery Costs'!G21 -> 1.326 | I10: ='Machinery Costs'!H21 -> 0.234 | J10: ='Machinery Costs'!I21 -> 2.38 | K10: ='Machinery Costs'!J21 -> 1.69 | L10: ='Machinery Costs'!K21 -> 0.0845 | M10: ='Machinery Costs'!L21 -> 0.663 | N10: ='Machinery Costs'!M21 -> 6.18
B11: Pickup 3/4 ton 4WD, new | C11: Annual | D11: ='Machinery Costs'!C8 -> 2.16 | E11: ='Machinery Costs'!D8 -> 0.38 | F11: ='Machinery Costs'!E8 -> 2.54 | G11: ='Machinery Costs'!F8 -> 0.78 | H11: ='Machinery Costs'!G8 -> 0 | I11: ='Machinery Costs'!H8 -> 0.162 | J11: ='Machinery Costs'!I8 -> 0.942 | K11: ='Machinery Costs'!J8 -> 2.64 | L11: ='Machinery Costs'!K8 -> 0.132 | M11: ='Machinery Costs'!L8 -> 0 | N11: ='Machinery Costs'!M8 -> 6.122
B12: Pickup 3/4 ton 4WD, used | C12: Annual | D12: ='Machinery Costs'!C9 -> 1.56 | E12: ='Machinery Costs'!D9 -> 0.44 | F12: ='Machinery Costs'!E9 -> 2 | G12: ='Machinery Costs'!F9 -> 0.78 | H12: ='Machinery Costs'!G9 -> 1.224 | I12: ='Machinery Costs'!H9 -> 0.216 | J12: ='Machinery Costs'!I9 -> 2.22 | K12: ='Machinery Costs'!J9 -> 4.38 | L12: ='Machinery Costs'!K9 -> 0.219 | M12: ='Machinery Costs'!L9 -> 0.612 | N12: ='Machinery Costs'!M9 -> 8.6
B13: Tandem Axle Truck | C13: Annual | D13: ='Machinery Costs'!C10 -> 1.65 | E13: ='Machinery Costs'!D10 -> 0.99 | F13: ='Machinery Costs'!E10 -> 2.64 | G13: ='Machinery Costs'!F10 -> 0.99 | H13: ='Machinery Costs'!G10 -> 0.969 | I13: ='Machinery Costs'!H10 -> 0.171 | J13: ='Machinery Costs'!I10 -> 2.13 | K13: ='Machinery Costs'!J10 -> 3.3 | L13: ='Machinery Costs'!K10 -> 0.165 | M13: ='Machinery Costs'!L10 -> 0.4845 | N13: ='Machinery Costs'!M10 -> 8.07
B14: Tandem Axle Truck | C14: Annual | D14: ='Machinery Costs'!C11 -> 1.65 | E14: ='Machinery Costs'!D11 -> 0.99 | F14: ='Machinery Costs'!E11 -> 2.64 | G14: ='Machinery Costs'!F11 -> 0.99 | H14: ='Machinery Costs'!G11 -> 0.969 | I14: ='Machinery Costs'!H11 -> 0.171 | J14: ='Machinery Costs'!I11 -> 2.13 | K14: ='Machinery Costs'!J11 -> 3.3 | L14: ='Machinery Costs'!K11 -> 0.165 | M14: ='Machinery Costs'!L11 -> 0.4845 | N14: ='Machinery Costs'!M11 -> 8.07
B15: Trap Wagon | C15: Annual | D15: ='Machinery Costs'!C12 -> 0.92 | E15: ='Machinery Costs'!D12 -> 0.23 | F15: ='Machinery Costs'!E12 -> 1.15 | G15: ='Machinery Costs'!F12 -> 0.3 | H15: ='Machinery Costs'!G12 -> 0.051 | I15: ='Machinery Costs'!H12 -> 0.009 | J15: ='Machinery Costs'!I12 -> 0.36 | K15: ='Machinery Costs'!J12 -> 0.2 | L15: ='Machinery Costs'!K12 -> 0.01 | M15: ='Machinery Costs'!L12 -> 0.0255 | N15: ='Machinery Costs'!M12 -> 1.71
B16: Total: | D16: =SUM(D6:D15) -> 22.46 | E16: 4.37 | F16: 26.83 | G16: 6.825 | H16: 8.332 | I16: 1.633 | J16: 16.79 | K16: 18.45 | L16: 0.9225 | M16: 4.166 | N16: 62.07
B17: Note: Farm size is assumed to be 2000 acres for the purposes of machinery cost calculations.
B18: Comments:
B19: 1Typically 135 lb N, 20 lb K, and 30 lb S, plus a rented fertilizer spreader ($1/acre).
B20: 2Typically 16-24 oz Roundup, 1.5 oz M90, 50 oz ammonium sulfate.
B21: 3Typically 100 lb seed, 110 lb N, 20 lb P, 20 lb S.
B22: 4Typically a tankmix with broadleaf sprays such as Starane+Salvo (22 oz) and Brox M (1.6 oz) plus a surfactant such as R-11 (3.2 oz). In addition, a wildoat spray such as Axial (8.2 oz/ac) is used on about half the acreage (thus 4.1 oz per acre is budgeted).

Sheet Spring Canola Budget
B2: Legend: Follow directions below to preserve equations in this spreadsheet.
B3: Yellow Cells: Data are from Summary page (yellow tab).
B4: Orange Cells: Revise this data here to reflect your situation.
B5: Green Cells: Data are from Input Costs page (green tab).
B6: Blue Cells: Data are from the Machinery page (blue tab).
B8: Production Costs for Direct Seeded Spring Canola, Northern Idaho
D9: Quantity | H9: Price or | J9: Value or
B10: Item | D10: Per Acre | F10: Unit | H10: Cost/Unit | J10: Cost/Acre
B12: Gross Returns
B13: Canola | D13: =ysc -> 1300 | F13: lb | H13: =psc -> 0.165 | J13: =D13*H13 -> 214.5
B15: Variable Costs
B17: Seed: | J17: =SUM(J18:J18) -> 30
B18: Canola Seed | D18: 5 | F18: lb | H18: =SCSd -> 6 | J18: =D18*H18 -> 30
B20: Fertilizer: | J20: =SUM(J21:J24) -> 55.632
B21: Nitrogen (dry) | D21: 80 | F21: lb | H21: =N -> 0.55 | J21: =D21*H21 -> 44
B22: Phosphorous (dry) | D22: 6.6 | F22: lb | H22: =P -> 1.17 | J22: =D22*H22 -> 7.722
B23: Sulfur (dry) | D23: 17 | F23: lb | H23: =S -> 0.23 | J23: =D23*H23 -> 3.91
J24: =D24*H24 -> 0
B26: Pesticides: | J26: =SUM(J27:J31) -> 35.055
B27: Roundup | D27: 56 | F27: oz | H27: =Glyphosphate -> 0.39 | J27: =D27*H27 -> 21.84
B28: Ammonium Sulfate | D28: 150 | F28: oz | H28: =AmmSulfLiq -> 0.02 | J28: 3
B29: M90 | D29: 4.5 | F29: oz | H29: =M -> 0.01 | J29: 0.045
B30: Capture | D30: 1 | F30: acre | H30: =Capture -> 10.17 | J30: 10.17
J31: 0
B33: Machinery: | J33: =SUM(J34:J38) -> 46.522
B34: Fuel | D34: ='SC Mach Costs'!M18 -> 6.01625 | F34: gal | H34: =Diesel -> 2 | J34: =D34*H34 -> 12.0325
B35: Lubricants | D35: 1 | F35: acre | H35: ='SC Mach Costs'!I18 -> 2.2895 | J35: =D35*H35 -> 2.2895
B36: Machinery Repairs | D36: 1 | F36: acre | H36: ='SC Mach Costs'!G18 -> 11.51 | J36: =D36*H36 -> 11.51
B37: Machinery Labor | D37: ='SC Mach Costs'!L18 -> 1.0345 | F37: acre | H37: =Labor -> 20 | J37: =D37*H37 -> 20.69
J38: =D38*H38 -> 0
B40: Custom & Consultants: | J40: =SUM(J41:J42) -> 6.5
B41: Custom Aerial Spray | D41: 1 | F41: acre | H41: =Aerial -> 6.5 | J41: =D41*H41 -> 6.5
J42: =D42*H42 -> 0
B44: Other: | J44: =SUM(J45:J47) -> 15
B45: Crop insurance | D45: 1 | F45: acre | H45: 15 | J45: =D45*H45 -> 15
B46: Storage Facility & Equip. Repairs | J46: =D46*H46 -> 0
J47: =D47*H47 -> 0
B49: Overhead1 | J49: =(J17+J20+J26+J33+J40+J44)*0.05 -> 9.43545
B50: Operating Interest2 | J50: =+(J17+J20+J26+J33+J40+J44)*operloan*0.5 -> 7.0765875
B52: Total Variable Costs | J52: =SUM(J17:J50)-(J17+J20+J26+J33+J40+J44) -> 205.2210375
B53: Variable Costs per Unit | J53: =J52/D13 -> 0.1578623365
B55: Net Returns Above Variable Costs | J55: =J13-J52 -> 9.2789625
B56: Fixed Costs:
B57: Capital recovery costs | J57: ='SC Mach Costs'!D18 -> 32.25
B58: Machinery insurance, taxes, housing, licenses | J58: ='SC Mach Costs'!$E$18 -> 5.439
B59: Land Cost* | D59: 1 | F59: acre | H59: =+(D13*H13)*D61-(J20+J26+H45)*D61-J65 -> 32.00829 | J59: =H59 -> 32.00829
B60: *Based on Share Rent Percentage:
B61: Landlord | D61: =+ownershare -> 0.33
B62: Tenant | D62: =opershare -> 0.67
B64: Cash rent | J64: =cashrent -> 0
B65: Land taxes | J65: =landtax -> 3.9
B67: Total Fixed Costs | J67: =SUM(J56:J65) -> 73.59729
B68: Fixed Costs per Unit | J68: =J67/D13 -> 0.0566133
B70: Total Costs per Acre | J70: =J52+J67 -> 278.8183275
B71: Total Cost per Unit | J71: =J70/D13 -> 0.2144756365
B73: Returns to Risk | J73: =J13-J70 -> -64.3183275
B75: Notes:
B76: 1Covers legal, accounting, and utility fees. Calculated as 5% of operating expenses.
B77: 2Calculated at 7% interest on operating capital for 6 months.
B81: Breakeven Analysis: | D81: - | F81: Base | H81: +
D82: 0.1 | H82: 0.1
F83: Yield
B84: Price | D84: =F84*(1-D82) -> 1170 | F84: =D13 -> 1300 | H84: =F84*(1+H82) -> 1430
B86: Operating Cost Breakeven | D86: =$J$52/D84 -> 0.1754025962 | F86: =$J$52/F84 -> 0.1578623365 | H86: =$J$52/H84 -> 0.143511215
B88: Ownership Cost Breakeven | D88: =$J$67/D84 -> 0.06290366667 | F88: =$J$67/F84 -> 0.0566133 | H88: =$J$67/H84 -> 0.05146663636
B90: Total Cost Breakeven | D90: =$J$70/D84 -> 0.2383062628 | F90: =$J$70/F84 -> 0.2144756365 | H90: =$J$70/H84 -> 0.1949778514
F93: Price
B94: Yield | D94: =F94*(1-D82) -> 0.1485 | F94: =H13 -> 0.165 | H94: =F94*(1+H82) -> 0.1815
B96: Operating Cost Breakeven | D96: =$J$52/D94 -> 1381.959848 | F96: =$J$52/F94 -> 1243.763864 | H96: =$J$52/H94 -> 1130.694421
B98: Ownership Cost Breakeven | D98: =$J$67/D94 -> 495.6046465 | F98: =$J$67/F94 -> 446.0441818 | H98: =$J$67/H94 -> 405.4947107
B100: Total Cost Breakeven | D100: =$J$70/D94 -> 1877.564495 | F100: =$J$70/F94 -> 1689.808045 | H100: =$J$70/H94 -> 1536.189132

Sheet SC Mach Costs
B2: Spring Canola Machinery Costs ($/acre)
D3: Fixed Costs ($/acre): | G3: Variable Costs ($/acre): | K3: Labor | M3: Fuel Use | N3: Total Cost
C4: Timing of Operation | D4: Capital Recovery Costs | E4: Taxes, Housing, Insurance, License | F4: Total Fixed Costs | G4: Repairs | H4: Fuel | I4: Lubricants | J4: Total
K5: ($/acre) | L5: (hr/acre) | M5: (gal/acre) | N5: ($/acre)
B6: 425HP-WT + 60' Heavy Harrow | C6: Sept | D6: ='Machinery Costs'!C18 -> 1.21 | E6: ='Machinery Costs'!D18 -> 0.129 | F6: ='Machinery Costs'!E18 -> 1.339 | G6: ='Machinery Costs'!F18 -> 0.56 | H6: ='Machinery Costs'!G18 -> 0.85 | I6: ='Machinery Costs'!H18 -> 0.15 | J6: ='Machinery Costs'!I18 -> 1.56 | K6: ='Machinery Costs'!J18 -> 0.51 | L6: ='Machinery Costs'!K18 -> 0.0255 | M6: ='Machinery Costs'!L18 -> 0.425 | N6: ='Machinery Costs'!M18 -> 3.409
B7: 200HP-WT + 100' Pull Sprayer1 | C7: October | D7: ='Machinery Costs'!C15 -> 1.86 | E7: ='Machinery Costs'!D15 -> 0.21 | F7: ='Machinery Costs'!E15 -> 2.07 | G7: ='Machinery Costs'!F15 -> 0.58 | H7: ='Machinery Costs'!G15 -> 0.34 | I7: ='Machinery Costs'!H15 -> 0.06 | J7: ='Machinery Costs'!I15 -> 0.98 | K7: ='Machinery Costs'!J15 -> 0.43 | L7: ='Machinery Costs'!K15 -> 0.0215 | M7: ='Machinery Costs'!L15 -> 0.17 | N7: ='Machinery Costs'!M15 -> 3.48
B8: 200HP-WT + 100' Pull Sprayer2 | C8: April | D8: ='Machinery Costs'!C15 -> 1.86 | E8: ='Machinery Costs'!D15 -> 0.21 | F8: ='Machinery Costs'!E15 -> 2.07 | G8: ='Machinery Costs'!F15 -> 0.58 | H8: ='Machinery Costs'!G15 -> 0.34 | I8: ='Machinery Costs'!H15 -> 0.06 | J8: ='Machinery Costs'!I15 -> 0.98 | K8: ='Machinery Costs'!J15 -> 0.43 | L8: ='Machinery Costs'!K15 -> 0.0215 | M8: ='Machinery Costs'!L15 -> 0.17 | N8: ='Machinery Costs'!M15 -> 3.48
B9: 36' NT Drill3 | C9: April | D9: ='Machinery Costs'!C19 -> 5.45 | E9: ='Machinery Costs'!D19 -> 0.58 | F9: ='Machinery Costs'!E19 -> 6.03 | G9: ='Machinery Costs'!F19 -> 3.12 | H9: ='Machinery Costs'!G19 -> 2.8135 | I9: ='Machinery Costs'!H19 -> 0.4965 | J9: ='Machinery Costs'!I19 -> 6.43 | K9: ='Machinery Costs'!J19 -> 1.69 | L9: ='Machinery Costs'!K19 -> 0.0845 | M9: ='Machinery Costs'!L19 -> 1.40675 | N9: ='Machinery Costs'!M19 -> 14.15
B10: 200HP-WT + 100' Pull Sprayer4 | C10: May | D10: ='Machinery Costs'!C15 -> 1.86 | E10: ='Machinery Costs'!D15 -> 0.21 | F10: ='Machinery Costs'!E15 -> 2.07 | G10: ='Machinery Costs'!F15 -> 0.58 | H10: ='Machinery Costs'!G15 -> 0.34 | I10: ='Machinery Costs'!H15 -> 0.06 | J10: ='Machinery Costs'!I15 -> 0.98 | K10: ='Machinery Costs'!J15 -> 0.43 | L10: ='Machinery Costs'!K15 -> 0.0215 | M10: ='Machinery Costs'!L15 -> 0.17 | N10: ='Machinery Costs'!M15 -> 3.48
B11: 36' Combine | C11: August | D11: ='Machinery Costs'!C20 -> 10.16 | E11: ='Machinery Costs'!D20 -> 0.87 | F11: ='Machinery Costs'!E20 -> 11.03 | G11: ='Machinery Costs'!F20 -> 1.43 | H11: ='Machinery Costs'!G20 -> 2.81 | I11: ='Machinery Costs'!H20 -> 0.5 | J11: ='Machinery Costs'!I20 -> 4.74 | K11: ='Machinery Costs'!J20 -> 1.69 | L11: ='Machinery Costs'!K20 -> 0.0845 | M11: ='Machinery Costs'!L20 -> 1.405 | N11: ='Machinery Costs'!M20 -> 17.46
B12: 200HP-WT + Bankout Wagon | C12: August | D12: ='Machinery Costs'!C21 -> 1.91 | E12: ='Machinery Costs'!D21 -> 0.2 | F12: ='Machinery Costs'!E21 -> 2.11 | G12: ='Machinery Costs'!F21 -> 0.82 | H12: ='Machinery Costs'!G21 -> 1.326 | I12: ='Machinery Costs'!H21 -> 0.234 | J12: ='Machinery Costs'!I21 -> 2.38 | K12: ='Machinery Costs'!J21 -> 1.69 | L12: ='Machinery Costs'!K21 -> 0.0845 | M12: ='Machinery Costs'!L21 -> 0.663 | N12: ='Machinery Costs'!M21 -> 6.18
B13: Pickup 3/4 ton 4WD, new | C13: Annual | D13: ='Machinery Costs'!C8 -> 2.16 | E13: ='Machinery Costs'!D8 -> 0.38 | F13: ='Machinery Costs'!E8 -> 2.54 | G13: ='Machinery Costs'!F8 -> 0.78 | H13: ='Machinery Costs'!G8 -> 0 | I13: ='Machinery Costs'!H8 -> 0.162 | J13: ='Machinery Costs'!I8 -> 0.942 | K13: ='Machinery Costs'!J8 -> 2.64 | L13: ='Machinery Costs'!K8 -> 0.132 | M13: ='Machinery Costs'!L8 -> 0 | N13: ='Machinery Costs'!M8 -> 6.122
B14: Pickup 3/4 ton 4WD, used | C14: Annual | D14: ='Machinery Costs'!C9 -> 1.56 | E14: ='Machinery Costs'!D9 -> 0.44 | F14: ='Machinery Costs'!E9 -> 2 | G14: ='Machinery Costs'!F9 -> 0.78 | H14: ='Machinery Costs'!G9 -> 1.224 | I14: ='Machinery Costs'!H9 -> 0.216 | J14: ='Machinery Costs'!I9 -> 2.22 | K14: ='Machinery Costs'!J9 -> 4.38 | L14: ='Machinery Costs'!K9 -> 0.219 | M14: ='Machinery Costs'!L9 -> 0.612 | N14: ='Machinery Costs'!M9 -> 8.6
B15: Tandem Axle Truck | C15: Annual | D15: ='Machinery Costs'!C10 -> 1.65 | E15: ='Machinery Costs'!D10 -> 0.99 | F15: ='Machinery Costs'!E10 -> 2.64 | G15: ='Machinery Costs'!F10 -> 0.99 | H15: ='Machinery Costs'!G10 -> 0.969 | I15: ='Machinery Costs'!H10 -> 0.171 | J15: ='Machinery Costs'!I10 -> 2.13 | K15: ='Machinery Costs'!J10 -> 3.3 | L15: ='Machinery Costs'!K10 -> 0.165 | M15: ='Machinery Costs'!L10 -> 0.4845 | N15: ='Machinery Costs'!M10 -> 8.07
B16: Tandem Axle Truck | C16: Annual | D16: ='Machinery Costs'!C11 -> 1.65 | E16: ='Machinery Costs'!D11 -> 0.99 | F16: ='Machinery Costs'!E11 -> 2.64 | G16: ='Machinery Costs'!F11 -> 0.99 | H16: ='Machinery Costs'!G11 -> 0.969 | I16: ='Machinery Costs'!H11 -> 0.171 | J16: ='Machinery Costs'!I11 -> 2.13 | K16: ='Machinery Costs'!J11 -> 3.3 | L16: ='Machinery Costs'!K11 -> 0.165 | M16: ='Machinery Costs'!L11 -> 0.4845 | N16: ='Machinery Costs'!M11 -> 8.07
B17: Trap Wagon | C17: Annual | D17: ='Machinery Costs'!C12 -> 0.92 | E17: ='Machinery Costs'!D12 -> 0.23 | F17: ='Machinery Costs'!E12 -> 1.15 | G17: ='Machinery Costs'!F12 -> 0.3 | H17: ='Machinery Costs'!G12 -> 0.051 | I17: ='Machinery Costs'!H12 -> 0.009 | J17: ='Machinery Costs'!I12 -> 0.36 | K17: ='Machinery Costs'!J12 -> 0.2 | L17: ='Machinery Costs'!K12 -> 0.01 | M17: ='Machinery Costs'!L12 -> 0.0255 | N17: ='Machinery Costs'!M12 -> 1.71
B18: Total: | D18: =SUM(D6:D17) -> 32.25 | E18: =SUM(E6:E17) -> 5.439 | F18: 37.689 | G18: 11.51 | H18: 12.0325 | I18: 2.2895 | J18: 25.832 | K18: 20.69 | L18: 1.0345 | M18: 6.01625 | N18: 84.211
B19: Note: Farm size is assumed to be 2000 acres for the purposes of machinery cost calculations.
B20: Comments:
B21: 1Typically 16-24 oz Roundup, 1.5 oz M90, 50 oz ammonium sulfate.
B22: 2Typically 16-24 oz Roundup, 1.5 oz M90, 50 oz ammonium sulfate.
B23: 3Typically 5 lb seed, 80 lb N, 6.6 lb P, 17 lb S.
B24: 4Typically 16 oz Roundup, 1.5 oz M90, 50 oz ammonium sulfate.

Sheet CF Budget
B2: Legend: Follow directions below to preserve equations in this spreadsheet.
B3: Yellow Cells: Data are from Summary page (yellow tab).
B4: Orange Cells: Revise this data here to reflect your situation.
B5: Green Cells: Data are from Input Costs page (green tab).
B6: Blue Cells: Data are from the Machinery page (blue tab).
B8: Production Costs for Chem Fallow, Northern Idaho
D9: Quantity | H9: Price or | J9: Value or
B10: Item | D10: Per Acre | F10: Unit | H10: Cost/Unit | J10: Cost/Acre
B13: Variable Costs
B16: Pesticides: | J16: =SUM(J17:J20) -> 21.12
B17: Roundup | D17: 54 | F17: oz | H17: =Glyphosphate -> 0.39 | J17: =D17*H17 -> 21.06
B18: Ammonium Sulfate | F18: oz | H18: =AmmSulfLiq -> 0.02 | J18: 0
B19: M90 | D19: 6 | F19: oz | H19: =M -> 0.01 | J19: 0.06
J20: 0
B23: Machinery: | J23: =SUM(J24:J28) -> 29.312
B24: Fuel | D24: ='CF Mach Costs'!M16 -> 2.7115 | F24: gal | H24: =Diesel -> 2 | J24: =D24*H24 -> 5.423
B25: Lubricants | D25: 1 | F25: acre | H25: ='CF Mach Costs'!I16 -> 1.119 | J25: =D25*H25 -> 1.119
B26: Machinery Repairs | D26: 1 | F26: acre | H26: ='CF Mach Costs'!G16 -> 6.72 | J26: =D26*H26 -> 6.72
B27: Machinery Labor | D27: ='CF Mach Costs'!L16 -> 0.8025 | F27: acre | H27: =Labor -> 20 | J27: =D27*H27 -> 16.05
J28: =D28*H28 -> 0
B30: Custom & Consultants: | J30: =SUM(J31:J33) -> 0
B31: Rental Sprayer | D31: 0 | F31: acre | H31: =Sprayer -> 1.75 | J31: =D31*H31 -> 0
B32: Custom Aerial Spray | D32: 0 | F32: acre | H32: =Aerial -> 6.5 | J32: =D32*H32 -> 0
J33: =D33*H33 -> 0
B35: Other: | J35: =SUM(J36:J36) -> 0
J36: =D36*H36 -> 0
B38: Overhead1 | J38: =(J16+J23+J30+J35)*0.05 -> 2.5216
B39: Operating Interest2 | J39: =(J16+J23+J30+J35)*operloan*0.5 -> 1.8912
B41: Total Variable Costs | J41: =SUM(J15:J39)-(J16+J23+J30+J35) -> 54.8448
B42: Fixed Costs:
B43: Capital recovery costs | J43: ='CF Mach Costs'!D16 -> 16.59
B44: Machinery insurance, taxes, housing, licenses | J44: ='CF Mach Costs'!E16 -> 3.999
B46: Cash rent | J46: =cashrent -> 0
B47: Land taxes | J47: =landtax -> 3.9
B50: Total Fixed Costs | J50: =SUM(J42:J47) -> 24.489
B52: Total Costs per Acre | J52: =J41+J50 -> 79.3338
B54: Notes:
B55: 1Covers legal, accounting, and utility fees. Calculated as 5% of operating expenses.
B56: 2Calculated at 7% interest on operating capital for 6 months.

Sheet CF Mach Costs
B2: Chem Fallow Machinery Costs ($/acre)
D3: Fixed Costs ($/acre): | G3: Variable Costs ($/acre): | K3: Labor | M3: Fuel Use | N3: Total Cost
C4: Timing of Operation | D4: Capital Recovery Costs | E4: Taxes, Housing, Insurance, License | F4: Total Fixed Costs | G4: Repairs | H4: Fuel | I4: Lubricants | J4: Total
K5: ($/acre) | L5: (hr/acre) | M5: (gal/acre) | N5: ($/acre)
B6: 200HP-WT + 100' Pull Sprayer1 | C6: Fall | D6: ='Machinery Costs'!C15 -> 1.86 | E6: ='Machinery Costs'!D15 -> 0.21 | F6: ='Machinery Costs'!E15 -> 2.07 | G6: ='Machinery Costs'!F15 -> 0.58 | H6: ='Machinery Costs'!G15 -> 0.34 | I6: ='Machinery Costs'!H15 -> 0.06 | J6: ='Machinery Costs'!I15 -> 0.98 | K6: ='Machinery Costs'!J15 -> 0.43 | L6: ='Machinery Costs'!K15 -> 0.0215 | M6: ='Machinery Costs'!L15 -> 0.17 | N6: ='Machinery Costs'!M15 -> 3.48
B7: 200HP-WT + 100' Pull Sprayer2 | C7: Spring | D7: ='Machinery Costs'!C15 -> 1.86 | E7: ='Machinery Costs'!D15 -> 0.21 | F7: ='Machinery Costs'!E15 -> 2.07 | G7: ='Machinery Costs'!F15 -> 0.58 | H7: ='Machinery Costs'!G15 -> 0.34 | I7: ='Machinery Costs'!H15 -> 0.06 | J7: ='Machinery Costs'!I15 -> 0.98 | K7: ='Machinery Costs'!J15 -> 0.43 | L7: ='Machinery Costs'!K15 -> 0.0215 | M7: ='Machinery Costs'!L15 -> 0.17 | N7: ='Machinery Costs'!M15 -> 3.48
B8: 200HP-WT + 100' Pull Sprayer3 | C8: June | D8: ='Machinery Costs'!C15 -> 1.86 | E8: ='Machinery Costs'!D15 -> 0.21 | F8: ='Machinery Costs'!E15 -> 2.07 | G8: ='Machinery Costs'!F15 -> 0.58 | H8: ='Machinery Costs'!G15 -> 0.34 | I8: ='Machinery Costs'!H15 -> 0.06 | J8: ='Machinery Costs'!I15 -> 0.98 | K8: ='Machinery Costs'!J15 -> 0.43 | L8: ='Machinery Costs'!K15 -> 0.0215 | M8: ='Machinery Costs'!L15 -> 0.17 | N8: ='Machinery Costs'!M15 -> 3.48
B9: 200HP-WT + 100' Pull Sprayer4 | C9: July | D9: ='Machinery Costs'!C15 -> 1.86 | E9: ='Machinery Costs'!D15 -> 0.21 | F9: ='Machinery Costs'!E15 -> 2.07 | G9: ='Machinery Costs'!F15 -> 0.58 | H9: ='Machinery Costs'!G15 -> 0.34 | I9: ='Machinery Costs'!H15 -> 0.06 | J9: ='Machinery Costs'!I15 -> 0.98 | K9: ='Machinery Costs'!J15 -> 0.43 | L9: ='Machinery Costs'!K15 -> 0.0215 | M9: ='Machinery Costs'!L15 -> 0.17 | N9: ='Machinery Costs'!M15 -> 3.48
B10: 425HP-WT + 60' Heavy Harrow | C10: September | D10: ='Machinery Costs'!C18 -> 1.21 | E10: ='Machinery Costs'!D18 -> 0.129 | F10: ='Machinery Costs'!E18 -> 1.339 | G10: ='Machinery Costs'!F18 -> 0.56 | H10: ='Machinery Costs'!G18 -> 0.85 | I10: ='Machinery Costs'!H18 -> 0.15 | J10: ='Machinery Costs'!I18 -> 1.56 | K10: ='Machinery Costs'!J18 -> 0.51 | L10: ='Machinery Costs'!K18 -> 0.0255 | M10: ='Machinery Costs'!L18 -> 0.425 | N10: ='Machinery Costs'!M18 -> 3.409
B11: Pickup 3/4 ton 4WD, new | C11: Annual | D11: ='Machinery Costs'!C8 -> 2.16 | E11: ='Machinery Costs'!D8 -> 0.38 | F11: ='Machinery Costs'!E8 -> 2.54 | G11: ='Machinery Costs'!F8 -> 0.78 | H11: ='Machinery Costs'!G8 -> 0 | I11: ='Machinery Costs'!H8 -> 0.162 | J11: ='Machinery Costs'!I8 -> 0.942 | K11: ='Machinery Costs'!J8 -> 2.64 | L11: ='Machinery Costs'!K8 -> 0.132 | M11: ='Machinery Costs'!L8 -> 0 | N11: ='Machinery Costs'!M8 -> 6.122
B12: Pickup 3/4 ton 4WD, used | C12: Annual | D12: ='Machinery Costs'!C9 -> 1.56 | E12: ='Machinery Costs'!D9 -> 0.44 | F12: ='Machinery Costs'!E9 -> 2 | G12: ='Machinery Costs'!F9 -> 0.78 | H12: ='Machinery Costs'!G9 -> 1.224 | I12: ='Machinery Costs'!H9 -> 0.216 | J12: ='Machinery Costs'!I9 -> 2.22 | K12: ='Machinery Costs'!J9 -> 4.38 | L12: ='Machinery Costs'!K9 -> 0.219 | M12: ='Machinery Costs'!L9 -> 0.612 | N12: ='Machinery Costs'!M9 -> 8.6
B13: Tandem Axle Truck | C13: Annual | D13: ='Machinery Costs'!C10 -> 1.65 | E13: ='Machinery Costs'!D10 -> 0.99 | F13: ='Machinery Costs'!E10 -> 2.64 | G13: ='Machinery Costs'!F10 -> 0.99 | H13: ='Machinery Costs'!G10 -> 0.969 | I13: ='Machinery Costs'!H10 -> 0.171 | J13: ='Machinery Costs'!I10 -> 2.13 | K13: ='Machinery Costs'!J10 -> 3.3 | L13: ='Machinery Costs'!K10 -> 0.165 | M13: ='Machinery Costs'!L10 -> 0.4845 | N13: ='Machinery Costs'!M10 -> 8.07
B14: Tandem Axle Truck | C14: Annual | D14: ='Machinery Costs'!C11 -> 1.65 | E14: ='Machinery Costs'!D11 -> 0.99 | F14: ='Machinery Costs'!E11 -> 2.64 | G14: ='Machinery Costs'!F11 -> 0.99 | H14: ='Machinery Costs'!G11 -> 0.969 | I14: ='Machinery Costs'!H11 -> 0.171 | J14: ='Machinery Costs'!I11 -> 2.13 | K14: ='Machinery Costs'!J11 -> 3.3 | L14: ='Machinery Costs'!K11 -> 0.165 | M14: ='Machinery Costs'!L11 -> 0.4845 | N14: ='Machinery Costs'!M11 -> 8.07
B15: Trap Wagon | C15: Annual | D15: ='Machinery Costs'!C12 -> 0.92 | E15: ='Machinery Costs'!D12 -> 0.23 | F15: ='Machinery Costs'!E12 -> 1.15 | G15: ='Machinery Costs'!F12 -> 0.3 | H15: ='Machinery Costs'!G12 -> 0.051 | I15: ='Machinery Costs'!H12 -> 0.009 | J15: ='Machinery Costs'!I12 -> 0.36 | K15: ='Machinery Costs'!J12 -> 0.2 | L15: ='Machinery Costs'!K12 -> 0.01 | M15: ='Machinery Costs'!L12 -> 0.0255 | N15: ='Machinery Costs'!M12 -> 1.71
B16: Total: | D16: =SUM(D6:D15) -> 16.59 | E16: =SUM(E6:E15) -> 3.999 | F16: 20.589 | G16: 6.72 | H16: 5.423 | I16: 1.119 | J16: 13.262 | K16: 16.05 | L16: 0.8025 | M16: 2.7115 | N16: 49.901
B17: Note: Farm size is assumed to be 2000 acres for the purposes of machinery cost calculations.
B18: 118 oz Roundup, 1.5 oz M90
B19: 218 oz Roundup, 1.5 oz M90
B20: 310 oz Roundup, 1.5 oz M90
B21: 48 oz Roundup, 1.5 oz M90

Sheet Machinery Costs
B2: Machinery Costs ($/acre)
B3: Note: Per hour machinery costs can be changed in this master table and they will update throughout. Per acre costs are calculated in a separate machinery cost program using the values listed in the Machinery Complement tab.
C4: Fixed Costs ($/acre): | F4: Variable Costs ($/acre): | J4: Labor | L4: Fuel Use | M4: Total Cost
C5: Capital Recovery Costs | D5: Taxes, Housing, Insurance, License | E5: Total Fixed Costs | F5: Repairs | G5: Fuel | H5: Lubricants | I5: Total
J6: ($/acre) | K6: (hr/acre) | L6: (gal/acre) | M6: ($/acre)
B7: Machinery costs for these implements are spread across every acre of the farm, regardless of crops produced:
B8: Pickup 3/4 ton 4WD, new | C8: 2.16 | D8: 0.38 | E8: =D8+C8 -> 2.54 | F8: 0.78 | H8: 0.162 | I8: =+H8+G8+F8 -> 0.942 | J8: 2.64 | K8: =J8/20 -> 0.132 | L8: =+G8/2 -> 0 | M8: =+J8+I8+E8 -> 6.122
B9: Pickup 3/4 ton 4WD, used | C9: 1.56 | D9: 0.44 | E9: =D9+C9 -> 2 | F9: 0.78 | G9: 1.224 | H9: 0.216 | I9: 2.22 | J9: 4.38 | K9: =J9/20 -> 0.219 | L9: =+G9/2 -> 0.612 | M9: 8.6
B10: Tandem Axle Truck | C10: 1.65 | D10: 0.99 | E10: =D10+C10 -> 2.64 | F10: 0.99 | G10: 0.969 | H10: 0.171 | I10: 2.13 | J10: 3.3 | K10: 0.165 | L10: 0.4845 | M10: 8.07
B11: Tandem Axle Truck | C11: 1.65 | D11: 0.99 | E11: =D11+C11 -> 2.64 | F11: 0.99 | G11: 0.969 | H11: 0.171 | I11: 2.13 | J11: 3.3 | K11: 0.165 | L11: 0.4845 | M11: =+J11+I11+E11 -> 8.07
B12: Trap Wagon | C12: 0.92 | D12: 0.23 | E12: =D12+C12 -> 1.15 | F12: 0.3 | G12: 0.051 | H12: 0.009 | I12: 0.36 | J12: 0.2 | K12: 0.01 | L12: 0.0255 | M12: 1.71
B13: Subtotal: | C13: =SUM(C8:C12) -> 7.94 | D13: =SUM(D8:D12) -> 3.03 | E13: 10.97 | F13: 3.84 | G13: 3.213 | H13: 0.729 | I13: 7.782 | J13: 13.82 | K13: 0.691 | L13: 1.6065 | M13: 32.572
B14: Machinery costs for these implements are specific to the operations for each crop:
B15: 200HP-WT + 100' Pull Sprayer | C15: 1.86 | D15: 0.21 | E15: =D15+C15 -> 2.07 | F15: 0.58 | G15: 0.34 | H15: 0.06 | I15: =+H15+G15+F15 -> 0.98 | J15: 0.43 | K15: =J15/20 -> 0.0215 | L15: =+G15/2 -> 0.17 | M15: 3.48
B16: 200HP-WT + 20' Rotary Mower | C16: 2.02 | D16: 0.22 | E16: 2.24 | F16: 0.576 | G16: =1.35*0.85 -> 1.1475 | H16: =1.35*0.15 -> 0.2025 | I16: =+H16+G16+F16 -> 1.926 | J16: 1.47 | K16: =J16/20 -> 0.0735 | L16: =+G16/2 -> 0.57375 | M16: =+J16+I16+E16 -> 5.636
B17: 200HP-WT + 45' Fert Spreader (rental) | C17: 0.59 | D17: 0.06 | E17: 0.65 | F17: 0.155 | G17: 0.643 | H17: 0.11 | I17: =+H17+G17+F17 -> 0.908 | J17: 0.82 | K17: =J17/20 -> 0.041 | L17: =+G17/2 -> 0.3215 | M17: =+J17+I17+E17 -> 2.378
B18: 425HP-WT + 60' Heavy Harrow | C18: 1.21 | D18: 0.129 | E18: 1.339 | F18: 0.56 | G18: 0.85 | H18: 0.15 | I18: 1.56 | J18: 0.51 | K18: 0.0255 | L18: 0.425 | M18: 3.409
B19: 425HP-WT + 36' NT Drill | C19: 5.45 | D19: 0.58 | E19: 6.03 | F19: 3.12 | G19: 2.8135 | H19: 0.4965 | I19: 6.43 | J19: 1.69 | K19: =J19/20 -> 0.0845 | L19: 1.40675 | M19: 14.15
B20: 36' Combine | C20: 10.16 | D20: 0.87 | E20: 11.03 | F20: 1.43 | G20: 2.81 | H20: 0.5 | I20: =+H20+G20+F20 -> 4.74 | J20: 1.69 | K20: =J20/20 -> 0.0845 | L20: =+G20/2 -> 1.405 | M20: =+J20+I20+E20 -> 17.46
B21: 200HP-WT + Bankout Wagon | C21: 1.91 | D21: 0.2 | E21: 2.11 | F21: 0.82 | G21: 1.326 | H21: 0.234 | I21: =+H21+G21+F21 -> 2.38 | J21: 1.69 | K21: =J21/20 -> 0.0845 | L21: =+G21/2 -> 0.663 | M21: =+J21+I21+E21 -> 6.18
B22: Total: | C22: =SUM(C8:C20)-C13 -> 29.23 | D22: 5.099 | E22: 34.329 | F22: 10.261 | G22: 11.817 | H22: 2.248 | I22: 24.326 | J22: 20.43 | K22: 1.0215 | L22: 5.9085 | M22: 79.085
B23: Note: Farm size is assumed to be 2000 acres for the purposes of machinery cost calculations.

Sheet Machinery Complement
B1: Summary
B3: Machinery Complement for Direct Seed/No Tillage, Northern Idaho
H4: Annual | J4: Taxes,
F5: Annual | H5: Repairs | I5: Gallons | J5: Housing,
B6: Type of | C6: Current | D6: Age When | E6: Years of | F6: Hours | G6: Salvage | H6: (Materials | I6: of | J6: Insur., | K6: Labor | L6: Acres
B7: Machine | C7: Value | D7: Purchased | E7: Life | F7: of Use | G7: Value | H7: & Labor) | I7: Fuel/Hr. | J7: Licenses | K7: Multiplier | L7: per Hour
C8: $ | G8: $ | H8: $ | J8: %
B9: Tractors:
B10: 200HP FWA Tractor | C10: 50000 | D10: 10 | E10: 15 | F10: 300 | G10: 19000 | H10: 1242 | I10: 9 | J10: 1 | K10: 1.1
B11: 425HP 4WD Tractor | C11: 80000 | D11: 10 | E11: 15 | F11: 350 | G11: 30000 | H11: 2830 | I11: 16 | J11: 1 | K11: 1.1
B12: Equipment:
B13: Bankout Wagon w/ 200HP-WT | C13: 15000 | D13: 5 | E13: 15 | F13: 155 | G13: 6186 | H13: 1000 | J13: 1 | K13: 1.1 | L13: 13
B14: 30' Rotary Mower w/ 200HP-WT | C14: 22000 | D14: 4 | E14: 15 | F14: 40 | G14: 2500 | H14: 600 | J14: 1 | K14: 1.1 | L14: 15
B15: 100' Pull Sprayer w/ 200HP-WT | C15: 35000 | D15: 2 | E15: 15 | F15: 100 | G15: 18500 | H15: 1000 | J15: 1 | K15: 1.2 | L15: 51
B16: 60' Heavy Harrow w/ 425HP-WT | C16: 15000 | D16: 5 | E16: 15 | F16: 50 | G16: 5800 | H16: 750 | J16: 1 | K16: 1.1 | L16: 43
B17: 36' NT Drill w/ 425HP-WT | C17: 80000 | D17: 4 | E17: 10 | F17: 175 | G17: 53000 | H17: 5000 | I17: 17 | J17: 1 | K17: 1.2 | L17: 12.8
B18: Fertilizer Tanks & Pump | C18: 25000 | D18: 0 | E18: 20 | G18: 0 | H18: 1000
B19: 36' Combine | C19: 225000 | D19: 5 | E19: 10 | F19: 200 | G19: 77570.21886 | H19: 3708 | I19: 15 | J19: 2.6 | K19: 1.25 | L19: 13
B20: Trucks: | F20: Miles/year: | I20: MPG:
B21: Tandem Axle Truck | C21: 35000 | D21: 15 | E21: 15 | F21: 6000 | G21: 8000 | H21: 2000 | I21: 6 | J21: 6.8 | K21: 1.1
B22: Tandem Axle Truck | C22: 35000 | D22: 15 | E22: 15 | F22: 6000 | G22: 8000 | H22: 2000 | I22: 6 | J22: 6.8 | K22: 1.1
B23: Trap Wagon | C23: 15000 | D23: 10 | E23: 10 | F23: 500 | G23: 3000 | H23: 600 | I23: 12 | J23: 3.8 | K23: 1.2
B24: 3/4T 4WD Pickup, new | C24: 34000 | D24: 0 | E24: 5 | F24: 12000 | G24: 22000 | H24: 1500 | I24: 16 | J24: 6.8 | K24: 1.1
B25: 3/4T 4WD Pickup, used | C25: 22000 | D25: 5 | E25: 7 | F25: 12000 | G25: 7500 | H25: 1500 | I25: 12 | J25: 6.8 | K25: 1.1
